Body Name,Body,Service Division Label,Service Division Code,Organisational Unit,Expenditure Category,Expenditure Code,CIPFA detailed expediture type,CIPFA detailed expediture code,Narrative,Date,Transaction number,Net Amount,Capital and Revenue,Supplier Name,Supplier ID
Chorley Borough Council,http://statistics.data.gov.uk/id/local-authority/30UE,Community Development,1097,Governance,Grants To Other Organisations,40127,Grants and Subscriptions,5031,Community Grant Funding,21/03/2013,87440,286.25,Revenue,4th (Chorley) St Peters Guides,58683
Chorley Borough Council,http://statistics.data.gov.uk/id/local-authority/30UE,Democratic Represent and  Mgnt,1007,Governance,Other Fees,40212,Miscellaneous Expenses,5034,Bar events on 15/12/12 22/12/12 12/1/13 1/2/13 and 2/2/13,06/03/2013,87229,325.00,Revenue,Ace Bars Ltd,54338
Chorley Borough Council,http://statistics.data.gov.uk/id/local-authority/30UE,Capital,Capital,Housing,Staying-Put Grant,3003,Capital Expenditure,Capital,Capital Works - Disable Facility Grant,08/03/2013,87198,900.00,Capital,Ackhurst Glass Ltd,22069
Chorley Borough Council,http://statistics.data.gov.uk/id/local-authority/30UE,Democratic Represent and  Mgnt,1007,Streetscene & Leisure Contracts,External Contractor - Trust or Charity,50008,Private Contractors,5042,ASLC/CG Management Fee - May 2012 - March 2013,08/03/2013,87192,"28,043.32",Revenue,Active Nation UK Ltd,17144
Chorley Borough Council,http://statistics.data.gov.uk/id/local-authority/30UE,Democratic Represent and  Mgnt,1007,Streetscene & Leisure Contracts,External Contractor - Trust or Charity,50008,Private Contractors,5042,Management Fee (Project Management)- May 2012 - March 2013,08/03/2013,87192,"2,318.89",Revenue,Active Nation UK Ltd,17144
Chorley Borough Council,http://statistics.data.gov.uk/id/local-authority/30UE,Democratic Represent and  Mgnt,1007,Streetscene & Leisure Contracts,External Contractor - Trust or Charity,50008,Private Contractors,5042,Brinscall Management Fee - May 2012 - March 2013,08/03/2013,87192,"3,669.69",Revenue,Active Nation UK Ltd,17144
Chorley Borough Council,http://statistics.data.gov.uk/id/local-authority/30UE,Development Control,1091,Planning,Consultants` Fees,40077,Services,5027,"Proposed Slurry Lagoon - Boyes Farm, Leyland Lane, Ulnes Walton PR26 8LBOdour Impact Assessment ",13/03/2013,87401,375.00,Revenue,ADAS UK Limited,16930
Chorley Borough Council,http://statistics.data.gov.uk/id/local-authority/30UE,Development Control,1091,Planning,Consultants` Fees,40077,Services,5027,Opinion on the need for an EIA ,13/03/2013,87401,350.00,Revenue,ADAS UK Limited,16930
Chorley Borough Council,http://statistics.data.gov.uk/id/local-authority/30UE,Capital,Capital,Streetscene & Leisure Contracts,Consultants Fees,3025,Capital Expenditure,Capital,Analysis of 6 soil samples including courier charges,08/03/2013,87243,333.00,Capital,ALcontrol UK Limited,39438
Chorley Borough Council,http://statistics.data.gov.uk/id/local-authority/30UE,Unapportionable Central OHeads,1009,"Customer, ICT & Transactional",Uniforms,40039,"Clothing, Uniforms and Laundry",5025,Ladies Clasic Skirt with vent- Black - Size 8 L25`` SW,22/03/2013,87485,22.99,Revenue,Alexandra,21752
Chorley Borough Council,http://statistics.data.gov.uk/id/local-authority/30UE,Central Support Services,1009,"Customer, ICT & Transactional",Uniforms,40039,"Clothing, Uniforms and Laundry",5025,Ladies 4 Button Fly Front Jacket- Black - size 14 S Catherine,22/03/2013,87485,62.99,Revenue,Alexandra,21752
Chorley Borough Council,http://statistics.data.gov.uk/id/local-authority/30UE,Unapportionable Central OHeads,1009,"Customer, ICT & Transactional",Uniforms,40039,"Clothing, Uniforms and Laundry",5025,Ladies 3 Button Single Breasted Jacket - Black- size 12 L/S Shirley,22/03/2013,87485,63.99,Revenue,Alexandra,21752
Chorley Borough Council,http://statistics.data.gov.uk/id/local-authority/30UE,Central Support Services,1009,"Customer, ICT & Transactional",Uniforms,40039,"Clothing, Uniforms and Laundry",5025,Short Sleeve Jersey Top -Red- size 12 AB,22/03/2013,87485,19.98,Revenue,Alexandra,21752
Chorley Borough Council,http://statistics.data.gov.uk/id/local-authority/30UE,Unapportionable Central OHeads,1009,"Customer, ICT & Transactional",Uniforms,40039,"Clothing, Uniforms and Laundry",5025,Short Sleeve Jersey Top -Red- size 10 ES,22/03/2013,87485,19.98,Revenue,Alexandra,21752
Chorley Borough Council,http://statistics.data.gov.uk/id/local-authority/30UE,Central Support Services,1009,"Customer, ICT & Transactional",Uniforms,40039,"Clothing, Uniforms and Laundry",5025,Short Sleeve Jersey Top -Red- size 24 JD,22/03/2013,87485,19.98,Revenue,Alexandra,21752
Chorley Borough Council,http://statistics.data.gov.uk/id/local-authority/30UE,Unapportionable Central OHeads,1009,"Customer, ICT & Transactional",Uniforms,40039,"Clothing, Uniforms and Laundry",5025,Ladies Boot Cut Trousers- Black - Size 14 L29,22/03/2013,87485,24.99,Revenue,Alexandra,21752
Chorley Borough Council,http://statistics.data.gov.uk/id/local-authority/30UE,Central Support Services,1009,"Customer, ICT & Transactional",Uniforms,40039,"Clothing, Uniforms and Laundry",5025,Crepe De Chine Short Sleeved Fitted Blouse - Red - Size 8,22/03/2013,87485,14.99,Revenue,Alexandra,21752
Chorley Borough Council,http://statistics.data.gov.uk/id/local-authority/30UE,Unapportionable Central OHeads,1009,"Customer, ICT & Transactional",Uniforms,40039,"Clothing, Uniforms and Laundry",5025,Crepe de Chine Collarless Fitted Blouse- Red - Size 8 ,22/03/2013,87485,14.99,Revenue,Alexandra,21752
Chorley Borough Council,http://statistics.data.gov.uk/id/local-authority/30UE,Central Support Services,1009,"Customer, ICT & Transactional",Uniforms,40039,"Clothing, Uniforms and Laundry",5025,Crepe De Chine Short Sleeved Fitted Blouse - Red - Size 8 ,22/03/2013,87485,14.99,Revenue,Alexandra,21752
Chorley Borough Council,http://statistics.data.gov.uk/id/local-authority/30UE,Unapportionable Central OHeads,1009,"Customer, ICT & Transactional",Uniforms,40039,"Clothing, Uniforms and Laundry",5025,Crepe De Chine Short Sleeved Fitted Blouse - Red - Size 16 ,22/03/2013,87485,14.99,Revenue,Alexandra,21752
Chorley Borough Council,http://statistics.data.gov.uk/id/local-authority/30UE,Central Support Services,1009,"Customer, ICT & Transactional",Uniforms,40039,"Clothing, Uniforms and Laundry",5025,Ladies 3 Button Single Breasted Jacket - Black- size 14 ,22/03/2013,87485,63.99,Revenue,Alexandra,21752
Chorley Borough Council,http://statistics.data.gov.uk/id/local-authority/30UE,Unapportionable Central OHeads,1009,"Customer, ICT & Transactional",Uniforms,40039,"Clothing, Uniforms and Laundry",5025,Crepe de Chine Collarless Fitted Blouse- Red - Size 14 ,22/03/2013,87485,14.99,Revenue,Alexandra,21752
Chorley Borough Council,http://statistics.data.gov.uk/id/local-authority/30UE,Central Support Services,1009,"Customer, ICT & Transactional",Uniforms,40039,"Clothing, Uniforms and Laundry",5025,Crepe de Chine Collarless Fitted Blouse- Red - Size 14 ,22/03/2013,87486,18.45,Revenue,Alexandra,21752
Chorley Borough Council,http://statistics.data.gov.uk/id/local-authority/30UE,Unapportionable Central OHeads,1009,"Customer, ICT & Transactional",Uniforms,40039,"Clothing, Uniforms and Laundry",5025,Short Sleeve Jersey Top -Red- size 12 HA,22/03/2013,87486,9.99,Revenue,Alexandra,21752
Chorley Borough Council,http://statistics.data.gov.uk/id/local-authority/30UE,Central Support Services,1009,"Customer, ICT & Transactional",Uniforms,40039,"Clothing, Uniforms and Laundry",5025,Ladies 4 Button Fly Front Jacket- Black - size 14 S HA,22/03/2013,87486,62.99,Revenue,Alexandra,21752
Chorley Borough Council,http://statistics.data.gov.uk/id/local-authority/30UE,Unapportionable Central OHeads,1009,"Customer, ICT & Transactional",Uniforms,40039,"Clothing, Uniforms and Laundry",5025,Ladies 3 Button Single Breasted Jacket - Black- size 12 L/S AB,22/03/2013,87486,63.99,Revenue,Alexandra,21752
Chorley Borough Council,http://statistics.data.gov.uk/id/local-authority/30UE,Central Support Services,1009,"Customer, ICT & Transactional",Uniforms,40039,"Clothing, Uniforms and Laundry",5025,Ladies Clasic Skirt with vent- Black - Size 12 L21`` ES,22/03/2013,87486,22.99,Revenue,Alexandra,21752
Chorley Borough Council,http://statistics.data.gov.uk/id/local-authority/30UE,Unapportionable Central OHeads,1009,"Customer, ICT & Transactional",Uniforms,40039,"Clothing, Uniforms and Laundry",5025,Ladies 4 Button Fly Front Jacket- Black - size 24 JD,22/03/2013,87486,62.99,Revenue,Alexandra,21752
Chorley Borough Council,http://statistics.data.gov.uk/id/local-authority/30UE,Central Support Services,1009,"Customer, ICT & Transactional",Uniforms,40039,"Clothing, Uniforms and Laundry",5025,Short Sleeve Jersey Top -Red- size 14 ,22/03/2013,87486,19.98,Revenue,Alexandra,21752
Chorley Borough Council,http://statistics.data.gov.uk/id/local-authority/30UE,Unapportionable Central OHeads,1009,"Customer, ICT & Transactional",Uniforms,40039,"Clothing, Uniforms and Laundry",5025,Crepe de Chine Collarless Fitted Blouse- Red - Size 14 ,22/03/2013,87486,18.45,Revenue,Alexandra,21752
Chorley Borough Council,http://statistics.data.gov.uk/id/local-authority/30UE,Central Support Services,1009,"Customer, ICT & Transactional",Uniforms,40039,"Clothing, Uniforms and Laundry",5025,Parallel Leg Trousers -Black - Size 14 L27`` ,22/03/2013,87486,24.99,Revenue,Alexandra,21752
Chorley Borough Council,http://statistics.data.gov.uk/id/local-authority/30UE,Unapportionable Central OHeads,1009,"Customer, ICT & Transactional",Uniforms,40039,"Clothing, Uniforms and Laundry",5025,Crepe de Chine Collarless Fitted Blouse- Red - Size 14,22/03/2013,87486,18.45,Revenue,Alexandra,21752
Chorley Borough Council,http://statistics.data.gov.uk/id/local-authority/30UE,Central Support Services,1009,"Customer, ICT & Transactional",Uniforms,40039,"Clothing, Uniforms and Laundry",5025,Crepe De Chine Short Sleeved Fitted Blouse - Red - Size 8 ,22/03/2013,87486,18.45,Revenue,Alexandra,21752
Chorley Borough Council,http://statistics.data.gov.uk/id/local-authority/30UE,Unapportionable Central OHeads,1009,"Customer, ICT & Transactional",Uniforms,40039,"Clothing, Uniforms and Laundry",5025,Ladies 4 Button Fly Front Jacket- Black - size 16L ,22/03/2013,87486,62.99,Revenue,Alexandra,21752
Chorley Borough Council,http://statistics.data.gov.uk/id/local-authority/30UE,Central Support Services,1009,"Customer, ICT & Transactional",Uniforms,40039,"Clothing, Uniforms and Laundry",5025,Crepe De Chine Short Sleeved Fitted Blouse - Red - Size18 ,22/03/2013,87486,18.45,Revenue,Alexandra,21752
Chorley Borough Council,http://statistics.data.gov.uk/id/local-authority/30UE,Unapportionable Central OHeads,1009,"Customer, ICT & Transactional",Uniforms,40039,"Clothing, Uniforms and Laundry",5025,2 x Crepe de Chine Collarless Fitted Blouse- Red - Size 14 ,22/03/2013,87486,36.90,Revenue,Alexandra,21752
Chorley Borough Council,http://statistics.data.gov.uk/id/local-authority/30UE,Unapportionable Central OHeads,1009,"Customer, ICT & Transactional",Uniforms,40039,"Clothing, Uniforms and Laundry",5025,Ladies Boot Cut Trousers- Black - Size 14 L29 ,22/03/2013,87487,24.99,Revenue,Alexandra,21752
Chorley Borough Council,http://statistics.data.gov.uk/id/local-authority/30UE,Central Support Services,1009,"Customer, ICT & Transactional",Uniforms,40039,"Clothing, Uniforms and Laundry",5025,Parallel Leg Trousers -Black - Size 16 L31`` ,22/03/2013,87487,24.99,Revenue,Alexandra,21752
Chorley Borough Council,http://statistics.data.gov.uk/id/local-authority/30UE,Central Support Services,1009,"Customer, ICT & Transactional",Uniforms,40039,"Clothing, Uniforms and Laundry",5025,Ladies Boot Cut Trousers- Black - Size 8 L31`` ,22/03/2013,87487,24.99,Revenue,Alexandra,21752
Chorley Borough Council,http://statistics.data.gov.uk/id/local-authority/30UE,Central Support Services,1009,"Customer, ICT & Transactional",Uniforms,40039,"Clothing, Uniforms and Laundry",5025,Ladies Boot Cut Trousers- Black - Size 8 L31``,22/03/2013,87487,24.99,Revenue,Alexandra,21752
Chorley Borough Council,http://statistics.data.gov.uk/id/local-authority/30UE,Unapportionable Central OHeads,1009,"Customer, ICT & Transactional",Uniforms,40039,"Clothing, Uniforms and Laundry",5025,Parallel Leg Trousers -Black - Size 16 L29`` ,22/03/2013,87487,24.99,Revenue,Alexandra,21752
Chorley Borough Council,http://statistics.data.gov.uk/id/local-authority/30UE,Central Support Services,1009,"Customer, ICT & Transactional",Uniforms,40039,"Clothing, Uniforms and Laundry",5025,Ladies 3 Button Single Breasted Jacket - Black- size 8 ,22/03/2013,87487,63.99,Revenue,Alexandra,21752
Chorley Borough Council,http://statistics.data.gov.uk/id/local-authority/30UE,Unapportionable Central OHeads,1009,"Customer, ICT & Transactional",Uniforms,40039,"Clothing, Uniforms and Laundry",5025,Ladies 4 Button Fly Front Jacket- Black - size 8 ,22/03/2013,87487,62.99,Revenue,Alexandra,21752
Chorley Borough Council,http://statistics.data.gov.uk/id/local-authority/30UE,Central Support Services,1009,"Customer, ICT & Transactional",Uniforms,40039,"Clothing, Uniforms and Laundry",5025,Ladies 4 Button Fly Front Jacket- Black - size 8 ,22/03/2013,87488,62.99,Revenue,Alexandra,21752
Chorley Borough Council,http://statistics.data.gov.uk/id/local-authority/30UE,Central Support Services,1009,"Customer, ICT & Transactional",Uniforms,40039,"Clothing, Uniforms and Laundry",5025,Ladies 4 Button Fly Front Jacket- Black - size 14 ,22/03/2013,87488,62.99,Revenue,Alexandra,21752
Chorley Borough Council,http://statistics.data.gov.uk/id/local-authority/30UE,Central Support Services,1009,"Customer, ICT & Transactional",Uniforms,40039,"Clothing, Uniforms and Laundry",5025,Ladies 4 Button Fly Front Jacket- Black - size 14 ,22/03/2013,87488,62.99,Revenue,Alexandra,21752
Chorley Borough Council,http://statistics.data.gov.uk/id/local-authority/30UE,Unapportionable Central OHeads,1009,"Customer, ICT & Transactional",Uniforms,40039,"Clothing, Uniforms and Laundry",5025,Ladies Clasic Skirt with vent- Black - Size 8 L21`` ,22/03/2013,87488,22.99,Revenue,Alexandra,21752
Chorley Borough Council,http://statistics.data.gov.uk/id/local-authority/30UE,Central Support Services,1009,"Customer, ICT & Transactional",Uniforms,40039,"Clothing, Uniforms and Laundry",5025,Ladies 4 Button Fly Front Jacket- Black - size 8 ,22/03/2013,87488,188.97,Revenue,Alexandra,21752
Chorley Borough Council,http://statistics.data.gov.uk/id/local-authority/30UE,Unapportionable Central OHeads,1009,"Customer, ICT & Transactional",Uniforms,40039,"Clothing, Uniforms and Laundry",5025,Short Sleeve Jersey Top -Red- size 14 ,22/03/2013,87489,19.98,Revenue,Alexandra,21752
Chorley Borough Council,http://statistics.data.gov.uk/id/local-authority/30UE,Central Support Services,1009,"Customer, ICT & Transactional",Uniforms,40039,"Clothing, Uniforms and Laundry",5025,Short Sleeve Jersey Top -Red- size 8 ,22/03/2013,87489,19.98,Revenue,Alexandra,21752
Chorley Borough Council,http://statistics.data.gov.uk/id/local-authority/30UE,Central Support Services,1009,"Customer, ICT & Transactional",Uniforms,40039,"Clothing, Uniforms and Laundry",5025,Ladies 3 Button Single Breasted Jacket - Black- size 12  ,22/03/2013,87489,127.98,Revenue,Alexandra,21752
Chorley Borough Council,http://statistics.data.gov.uk/id/local-authority/30UE,Unapportionable Central OHeads,1009,"Customer, ICT & Transactional",Uniforms,40039,"Clothing, Uniforms and Laundry",5025,2 Button SB jacket 4 Button Fly Front Jacket Collarless Fitted Blouse Crepe de chine ss fitted blouse,22/03/2013,87489,234.40,Revenue,Alexandra,21752
Chorley Borough Council,http://statistics.data.gov.uk/id/local-authority/30UE,Central Support Services,1009,"Customer, ICT & Transactional",Bank Charges,40151,Miscellaneous Expenses,5034,CHBC Scheme - Exempt,01/03/2013,86703,"1,367.11",Revenue,Allpay Net Ltd,17242
Chorley Borough Council,http://statistics.data.gov.uk/id/local-authority/30UE,Unapportionable Central OHeads,1009,"Customer, ICT & Transactional",Bank Charges,40151,Miscellaneous Expenses,5034,CHBCScheme - Exempt,01/03/2013,86703,43.01,Revenue,Allpay Net Ltd,17242
Chorley Borough Council,http://statistics.data.gov.uk/id/local-authority/30UE,Central Support Services,1009,"Customer, ICT & Transactional",Bank Charges,40151,Miscellaneous Expenses,5034,"Allpay invoices for Sept - MarchScheme CHBC",21/03/2013,87205,603.34,Revenue,Allpay Net Ltd,17242
Chorley Borough Council,http://statistics.data.gov.uk/id/local-authority/30UE,Unapportionable Central OHeads,1009,"Customer, ICT & Transactional",Bank Charges,40151,Miscellaneous Expenses,5034,"Allpay invoices for Sept - MarchScheme CHBC",21/03/2013,87205,43.01,Revenue,Allpay Net Ltd,17242
Chorley Borough Council,http://statistics.data.gov.uk/id/local-authority/30UE,Corporate Management,1008,Shared Service Arrangement,Car Leasing Payment,14100,Direct Employee Expenses,5001,Vehicle Leasing,06/03/2013,87262,"2,126.80",Revenue,Alphabet (Uk) Fleet Management Ltd,16651
Chorley Borough Council,http://statistics.data.gov.uk/id/local-authority/30UE,Community Safety Crime Reduct,1043,Shared Service Arrangement,Car Leasing Payment,14100,Direct Employee Expenses,5001,Vehicle Leasing,06/03/2013,87262,184.54,Revenue,Alphabet (Uk) Fleet Management Ltd,16651
Chorley Borough Council,http://statistics.data.gov.uk/id/local-authority/30UE,Control Accounts,Control,Shared Service Arrangement,Manual Control Account,1,Balance Sheet,Balance,Vehicle Leasing,06/03/2013,87262,-184.54,Revenue,Alphabet (Uk) Fleet Management Ltd,16651
Chorley Borough Council,http://statistics.data.gov.uk/id/local-authority/30UE,Housing Strategy,1069,Shared Service Arrangement,Car Leasing Payment,14100,Direct Employee Expenses,5001,Vehicle Leasing,06/03/2013,87262,"4,587.23",Revenue,Alphabet (Uk) Fleet Management Ltd,16651
Chorley Borough Council,http://statistics.data.gov.uk/id/local-authority/30UE,Housing Strategy,1069,Shared Service Arrangement,Car Leasing Payment,14100,Direct Employee Expenses,5001,Vehicle Leasing,06/03/2013,87262,411.98,Revenue,Alphabet (Uk) Fleet Management Ltd,16651
Chorley Borough Council,http://statistics.data.gov.uk/id/local-authority/30UE,Democratic Represent and  Mgnt,1007,Health Environment & Neighbourhoods,Other Fees,40212,Miscellaneous Expenses,5034,2 group day activity as booked per invoice ref A1209008for Us Girls programme ref,26/03/2013,87568,320.00,Revenue,Anderton Centre - LOAI,56108
Chorley Borough Council,http://statistics.data.gov.uk/id/local-authority/30UE,Economic Development,1096,Economic Development,Grants To Other Organisations,40127,Grants and Subscriptions,5031,Starting in Business Grant - capital Expenditure,26/03/2013,87602,"1,000.00",Revenue,NAME REDACTED,58861
Chorley Borough Council,http://statistics.data.gov.uk/id/local-authority/30UE,Capital,Capital,"Customer, ICT & Transactional",Consultants Fees,3025,Capital Expenditure,Capital,Network Reconfiguration,21/03/2013,87340,450.00,Capital,ANS Group,22502
Chorley Borough Council,http://statistics.data.gov.uk/id/local-authority/30UE,Public Transport,1067,Streetscene & Leisure Contracts,Bus Shelters -Maintenance,20062,Grounds Maintenance Costs,5013,sSupply and fit new panels on bus shelter in Brinscal opposite Sandy Lane,21/03/2013,87494,500.00,Revenue,Ark Welding Ltd,18154
Chorley Borough Council,http://statistics.data.gov.uk/id/local-authority/30UE,Service Management & Support,1009,Streetscene & Leisure Contracts,Supplies-Grounds Maintenance,40025,"Equipment, Furniture & Materia",5023,Supply 23 RSJ`s and 10 channel section to make loading bays at Yarrow depot,21/03/2013,87499,"1,129.70",Revenue,Ark Welding Ltd,18154
Chorley Borough Council,http://statistics.data.gov.uk/id/local-authority/30UE,Public Transport,1067,Streetscene & Leisure Contracts,Bus Shelters -Maintenance,20062,Grounds Maintenance Costs,5013,Carryout refurbisment of bus shelters as per Chorley Council specification across the borough of Chorley. ,21/03/2013,87501,"3,415.00",Revenue,Ark Welding Ltd,18154
Chorley Borough Council,http://statistics.data.gov.uk/id/local-authority/30UE,Parking Services,1066,Streetscene & Leisure Contracts,Special Repairs,20007,Repairs Maintenance & Alts,5005,"Car Park Refurbishment work, as per agreed specification",21/03/2013,87502,"1,807.26",Revenue,Ark Welding Ltd,18154
Chorley Borough Council,http://statistics.data.gov.uk/id/local-authority/30UE,Central Support Services,1009,Shared Service Arrangement,Car Leasing Payment,14100,Direct Employee Expenses,5001,Vehicle Leasing,13/03/2013,87293,331.22,Revenue,Arnold Clark Finance Ltd,20685
Chorley Borough Council,http://statistics.data.gov.uk/id/local-authority/30UE,Unapportionable Central OHeads,1009,Shared Service Arrangement,Car Leasing Payment,14100,Direct Employee Expenses,5001,Vehicle Leasing,13/03/2013,87293,59.25,Revenue,Arnold Clark Finance Ltd,20685
Chorley Borough Council,http://statistics.data.gov.uk/id/local-authority/30UE,Central Support Services,1009,Shared Service Arrangement,Car Leasing Payment,14100,Direct Employee Expenses,5001,Vehicle Leasing,26/03/2013,87337,"2,568.00",Revenue,Arnold Clark Finance Ltd,20685
Chorley Borough Council,http://statistics.data.gov.uk/id/local-authority/30UE,Unapportionable Central OHeads,1009,Shared Service Arrangement,Car Leasing Payment,14100,Direct Employee Expenses,5001,Vehicle Leasing,26/03/2013,87337,213.72,Revenue,Arnold Clark Finance Ltd,20685
Chorley Borough Council,http://statistics.data.gov.uk/id/local-authority/30UE,Unapportionable Central OHeads,1009,Shared Service Arrangement,Car Leasing Payment,14100,Direct Employee Expenses,5001,Vehicle Leasing,26/03/2013,87573,"2,760.00",Revenue,Arnold Clark Finance Ltd,20685
Chorley Borough Council,http://statistics.data.gov.uk/id/local-authority/30UE,Central Support Services,1009,Shared Service Arrangement,Car Leasing Payment,14100,Direct Employee Expenses,5001,Vehicle Leasing,26/03/2013,87573,245.52,Revenue,Arnold Clark Finance Ltd,20685
Chorley Borough Council,http://statistics.data.gov.uk/id/local-authority/30UE,Building Control,1090,Shared Service Arrangement,Car Leasing Payment,14100,Direct Employee Expenses,5001,Vehicle Leasing,26/03/2013,87574,"3,000.00",Revenue,Arnold Clark Finance Ltd,20685
Chorley Borough Council,http://statistics.data.gov.uk/id/local-authority/30UE,Building Control,1090,Shared Service Arrangement,Car Leasing Payment,14100,Direct Employee Expenses,5001,Vehicle Leasing,26/03/2013,87574,252.06,Revenue,Arnold Clark Finance Ltd,20685
Chorley Borough Council,http://statistics.data.gov.uk/id/local-authority/30UE,Economic Development,1096,Shared Service Arrangement,Car Leasing Payment,14100,Direct Employee Expenses,5001,Vehicle Leasing,26/03/2013,87575,"3,888.00",Revenue,Arnold Clark Finance Ltd,20685
Chorley Borough Council,http://statistics.data.gov.uk/id/local-authority/30UE,Economic Development,1096,Shared Service Arrangement,Car Leasing Payment,14100,Direct Employee Expenses,5001,Vehicle Leasing,26/03/2013,87575,350.08,Revenue,Arnold Clark Finance Ltd,20685
Chorley Borough Council,http://statistics.data.gov.uk/id/local-authority/30UE,Planning Policy,1092,Shared Service Arrangement,Car Leasing Payment,14100,Direct Employee Expenses,5001,Vehicle Leasing,26/03/2013,87576,"4,788.00",Revenue,Arnold Clark Finance Ltd,20685
Chorley Borough Council,http://statistics.data.gov.uk/id/local-authority/30UE,Planning Policy,1092,Shared Service Arrangement,Car Leasing Payment,14100,Direct Employee Expenses,5001,Vehicle Leasing,26/03/2013,87576,423.69,Revenue,Arnold Clark Finance Ltd,20685
Chorley Borough Council,http://statistics.data.gov.uk/id/local-authority/30UE,Regulatory Services,1048,Health Environment & Neighbourhoods,Taxi Testing & Vehicle Safety Report,40234,Services,5027,MOT,08/03/2013,87206,"1,042.15",Revenue,Autocentre LTD,21651
Chorley Borough Council,http://statistics.data.gov.uk/id/local-authority/30UE,Corporate Management,1008,Health Environment & Neighbourhoods,Taxi Testing & Vehicle Safety Report,40234,Services,5027,MOT,08/03/2013,87206,158.27,Revenue,Autocentre LTD,21651
Chorley Borough Council,http://statistics.data.gov.uk/id/local-authority/30UE,Regulatory Services,1048,Health Environment & Neighbourhoods,Taxi Testing & Vehicle Safety Report,40234,Services,5027,MOT,08/03/2013,87224,219.40,Revenue,Autocentre LTD,21651
Chorley Borough Council,http://statistics.data.gov.uk/id/local-authority/30UE,Corporate Management,1008,Health Environment & Neighbourhoods,Taxi Testing & Vehicle Safety Report,40234,Services,5027,MOT,08/03/2013,87224,33.32,Revenue,Autocentre LTD,21651
Chorley Borough Council,http://statistics.data.gov.uk/id/local-authority/30UE,Corporate Management,1008,Health Environment & Neighbourhoods,Other Contributions,40145,Grants and Subscriptions,5031,Presentation on Raising Awareness of Cannabis,28/03/2013,87670,250.00,Revenue,Bill Stupples,58140
Chorley Borough Council,http://statistics.data.gov.uk/id/local-authority/30UE,Central Support Services,1009,HR & Org. Development,Legal Fees,40171,Miscellaneous Expenses,5034,To Professional Charges for advice and assistance in relation to Compromise Agreement,06/03/2013,87232,300.00,Revenue,Birchall Blackburn LLP,21550
Chorley Borough Council,http://statistics.data.gov.uk/id/local-authority/30UE,Homelessness,1075,Housing,Training Course Fees,17010,Indirect Employee Expenses,5002,CIH Level 2 Certificate in Housing Practice (QCF) ,06/03/2013,87187,400.00,Revenue,BLACKBURN COLLEGE,18193
Chorley Borough Council,http://statistics.data.gov.uk/id/local-authority/30UE,Central Support Services,1009,Shared Service Arrangement,External Contractor,40198,Miscellaneous Expenses,5034,Provision of payroll Services 2012/2013,28/03/2013,87671,"2,166.44",Revenue,Blackpool Borough Council,16518
Chorley Borough Council,http://statistics.data.gov.uk/id/local-authority/30UE,Unapportionable Central OHeads,1009,Shared Service Arrangement,External Contractor,40198,Miscellaneous Expenses,5034,Postage,28/03/2013,87671,183.50,Revenue,Blackpool Borough Council,16518
Chorley Borough Council,http://statistics.data.gov.uk/id/local-authority/30UE,Capital,Capital,Streetscene & Leisure Contracts,Main Contractor,3007,Capital Expenditure,Capital,Purchase and delivery of 35 sets of Heras fencing Delivery required for Wed 6th March AM.  ,13/03/2013,87365,945.00,Capital,Blok`N`Mesh UK Limited,58305
Chorley Borough Council,http://statistics.data.gov.uk/id/local-authority/30UE,Democratic Represent and  Mgnt,1007,Chief Executives Office,Conferences - Members,40121,Expenses,5030,Re LGA Conference Manchester 2013 2 x Double Rooms ,06/03/2013,87092,322.50,Revenue,Bournemouth Convention Bureau LTD,22603
Chorley Borough Council,http://statistics.data.gov.uk/id/local-authority/30UE,Democratic Represent and  Mgnt,1007,Health Environment & Neighbourhoods,Children's Activities,40188,Miscellaneous Expenses,5034,Punch & Judy for Winter Playday on Saturday 23rd February,06/03/2013,87177,250.00,Revenue,Brian Gore,18370
Chorley Borough Council,http://statistics.data.gov.uk/id/local-authority/30UE,Democratic Represent and  Mgnt,1007,Chief Executives Office,Gas,20014,Energy Costs,5006,Yarrow Valley Feb 2013,28/03/2013,87448,130.01,Revenue,British Gas Business,22242
Chorley Borough Council,http://statistics.data.gov.uk/id/local-authority/30UE,Culture & Heritage,1036,Chief Executives Office,Gas,20014,Energy Costs,5006,Astley Cottage Feb 13,28/03/2013,87448,236.77,Revenue,British Gas Business,22242
Chorley Borough Council,http://statistics.data.gov.uk/id/local-authority/30UE,Democratic Represent and  Mgnt,1007,Chief Executives Office,Gas,20014,Energy Costs,5006,Astley Village Comm Ctr Feb 2013,28/03/2013,87448,401.41,Revenue,British Gas Business,22242
Chorley Borough Council,http://statistics.data.gov.uk/id/local-authority/30UE,Democratic Represent and  Mgnt,1007,Chief Executives Office,Gas,20014,Energy Costs,5006,Eaves Green,28/03/2013,87448,343.41,Revenue,British Gas Business,22242
Chorley Borough Council,http://statistics.data.gov.uk/id/local-authority/30UE,Homelessness,1075,Chief Executives Office,Gas,20014,Energy Costs,5006,Cotswold House,28/03/2013,87448,940.05,Revenue,British Gas Business,22242
Chorley Borough Council,http://statistics.data.gov.uk/id/local-authority/30UE,Community Development,1097,Chief Executives Office,Gas,20014,Energy Costs,5006,Accounting Adv,28/03/2013,87448,86.17,Revenue,British Gas Business,22242
Chorley Borough Council,http://statistics.data.gov.uk/id/local-authority/30UE,Unapportionable Central OHeads,1009,Chief Executives Office,Gas,20014,Energy Costs,5006,Bengal St Feb 13,28/03/2013,87448,363.26,Revenue,British Gas Business,22242
Chorley Borough Council,http://statistics.data.gov.uk/id/local-authority/30UE,Democratic Represent and  Mgnt,1007,Chief Executives Office,Gas,20014,Energy Costs,5006,Clayton Brook Comm Ctr Feb 13,28/03/2013,87448,340.45,Revenue,British Gas Business,22242
Chorley Borough Council,http://statistics.data.gov.uk/id/local-authority/30UE,Democratic Represent and  Mgnt,1007,Chief Executives Office,Gas,20014,Energy Costs,5006,Astley Hall Farm Feb 13,28/03/2013,87448,226.85,Revenue,British Gas Business,22242
Chorley Borough Council,http://statistics.data.gov.uk/id/local-authority/30UE,Unapportionable Central OHeads,1009,Chief Executives Office,Gas,20014,Energy Costs,5006,Union Street,28/03/2013,87448,"1,472.67",Revenue,British Gas Business,22242
Chorley Borough Council,http://statistics.data.gov.uk/id/local-authority/30UE,Democratic Represent and  Mgnt,1007,Chief Executives Office,Gas,20014,Energy Costs,5006,Coach House,28/03/2013,87448,534.13,Revenue,British Gas Business,22242
Chorley Borough Council,http://statistics.data.gov.uk/id/local-authority/30UE,Democratic Represent and  Mgnt,1007,Chief Executives Office,Gas,20014,Energy Costs,5006,Astley Hall,28/03/2013,87448,"2,252.33",Revenue,British Gas Business,22242
Chorley Borough Council,http://statistics.data.gov.uk/id/local-authority/30UE,Unapportionable Central OHeads,1009,Chief Executives Office,Gas,20014,Energy Costs,5006,Town Hall,28/03/2013,87448,"1,915.20",Revenue,British Gas Business,22242
Chorley Borough Council,http://statistics.data.gov.uk/id/local-authority/30UE,Unapportionable Central OHeads,1009,"Customer, ICT & Transactional",Internet Charges,40104,Communication and Computing,5028,Charges,01/03/2013,87029,57.00,Revenue,British Telecommunications Plc,17131
Chorley Borough Council,http://statistics.data.gov.uk/id/local-authority/30UE,Homelessness,1075,"Customer, ICT & Transactional",Internet Charges,40104,Communication and Computing,5028,Charges,01/03/2013,87029,19.00,Revenue,British Telecommunications Plc,17131
Chorley Borough Council,http://statistics.data.gov.uk/id/local-authority/30UE,Democratic Represent and  Mgnt,1007,"Customer, ICT & Transactional",Internet Charges,40104,Communication and Computing,5028,Charges,01/03/2013,87029,619.00,Revenue,British Telecommunications Plc,17131
Chorley Borough Council,http://statistics.data.gov.uk/id/local-authority/30UE,Democratic Represent and  Mgnt,1007,"Customer, ICT & Transactional",Telephones - Calls,40084,Communication and Computing,5028,UYseage Charges,01/03/2013,87122,449.12,Revenue,British Telecommunications Plc,17131
Chorley Borough Council,http://statistics.data.gov.uk/id/local-authority/30UE,Democratic Represent and  Mgnt,1007,"Customer, ICT & Transactional",Telephones - Rentals,40083,Communication and Computing,5028,One Off Charges,01/03/2013,87122,112.00,Revenue,British Telecommunications Plc,17131
Chorley Borough Council,http://statistics.data.gov.uk/id/local-authority/30UE,Democratic Represent and  Mgnt,1007,"Customer, ICT & Transactional",Telephones - Rentals,40083,Communication and Computing,5028,Recurring charges,01/03/2013,87122,"1,249.80",Revenue,British Telecommunications Plc,17131
Chorley Borough Council,http://statistics.data.gov.uk/id/local-authority/30UE,Central Support Services,1009,"Customer, ICT & Transactional",Network Line Rental,40248,Communication and Computing,5028,Private Circuit Bill,22/03/2013,87372,304.24,Revenue,British Telecommunications Plc,17131
Chorley Borough Council,http://statistics.data.gov.uk/id/local-authority/30UE,Culture & Heritage,1036,"Customer, ICT & Transactional",Internet Charges,40104,Communication and Computing,5028,Charges,26/03/2013,87606,114.32,Revenue,British Telecommunications Plc,17131
Chorley Borough Council,http://statistics.data.gov.uk/id/local-authority/30UE,Central Support Services,1009,"Customer, ICT & Transactional",Internet Charges,40104,Communication and Computing,5028,Charges,26/03/2013,87606,57.00,Revenue,British Telecommunications Plc,17131
Chorley Borough Council,http://statistics.data.gov.uk/id/local-authority/30UE,Homelessness,1075,"Customer, ICT & Transactional",Internet Charges,40104,Communication and Computing,5028,Charges,26/03/2013,87606,19.00,Revenue,British Telecommunications Plc,17131
Chorley Borough Council,http://statistics.data.gov.uk/id/local-authority/30UE,Democratic Represent and  Mgnt,1007,"Customer, ICT & Transactional",Internet Charges,40104,Communication and Computing,5028,Charges,26/03/2013,87606,589.00,Revenue,British Telecommunications Plc,17131
Chorley Borough Council,http://statistics.data.gov.uk/id/local-authority/30UE,Corporate Management,1008,Health Environment & Neighbourhoods,Telephones - Rentals,40083,Communication and Computing,5028,"Redcare Vision, analogue legacy rental",15/03/2013,87371,"1,683.15",Revenue,BT Redcare,21115
Chorley Borough Council,http://statistics.data.gov.uk/id/local-authority/30UE,Economic Development,1096,Economic Development,Grants To Other Organisations,40127,Grants and Subscriptions,5031,Final payment for Business Rate Subsidy under the Town Centre Grants,21/03/2013,87509,772.93,Revenue,Buggy Brilliant Ltd,55773
Chorley Borough Council,http://statistics.data.gov.uk/id/local-authority/30UE,Service Management & Support,1009,Streetscene & Leisure Contracts,External Contractor,40198,Miscellaneous Expenses,5034,Carryout gully emptying root cutting and jetting at various area`s as requested in Chorley area,21/03/2013,87474,472.50,Revenue,C J Lyon,16579
Chorley Borough Council,http://statistics.data.gov.uk/id/local-authority/30UE,Service Management & Support,1009,Streetscene & Leisure Contracts,Vehicle Maintenance,30045,Direct Transport Costs,5016,Carryout FTA repairs as per inspection sheet on DK07LDE,21/03/2013,87419,307.91,Revenue,C P Davidson & Sons Ltd,21093
Chorley Borough Council,http://statistics.data.gov.uk/id/local-authority/30UE,Service Management & Support,1009,Streetscene & Leisure Contracts,Vehicle Maintenance,30045,Direct Transport Costs,5016,Carryout repairs to heavey steering on DK55EEF as required renew king pins track rods and bushes as required,21/03/2013,87421,734.46,Revenue,C P Davidson & Sons Ltd,21093
Chorley Borough Council,http://statistics.data.gov.uk/id/local-authority/30UE,Central Support Services,1009,"Customer, ICT & Transactional",Emergency Call Out System,40096,Communication and Computing,5028,Out of Hours - Call Charge for January 2013,01/03/2013,86861,387.36,Revenue,CallCare Ltd,20257
Chorley Borough Council,http://statistics.data.gov.uk/id/local-authority/30UE,Unapportionable Central OHeads,1009,"Customer, ICT & Transactional",Emergency Call Out System,40096,Communication and Computing,5028,Out of Hours - Standing Charge for March 2013,01/03/2013,86861,50.00,Revenue,CallCare Ltd,20257
Chorley Borough Council,http://statistics.data.gov.uk/id/local-authority/30UE,Central Support Services,1009,"Customer, ICT & Transactional",Emergency Call Out System,40096,Communication and Computing,5028,Out of Hours - Call Charge for February 2013,26/03/2013,87415,195.92,Revenue,CallCare Ltd,20257
Chorley Borough Council,http://statistics.data.gov.uk/id/local-authority/30UE,Unapportionable Central OHeads,1009,"Customer, ICT & Transactional",Emergency Call Out System,40096,Communication and Computing,5028,Out of Hours - Standing Charge for April 2013,26/03/2013,87415,120.00,Revenue,CallCare Ltd,20257
Chorley Borough Council,http://statistics.data.gov.uk/id/local-authority/30UE,Central Support Services,1009,"Customer, ICT & Transactional",Photocopier Charges,40047,"Printing, Stationery & General",5026,GB-505967-OKL,01/03/2013,87080,"1,299.81",Revenue,Canon (UK) Ltd,17492
Chorley Borough Council,http://statistics.data.gov.uk/id/local-authority/30UE,Housing Advice,1071,Streetscene & Leisure Contracts,Other Contributions,40145,Grants and Subscriptions,5031,Administration services for the transport element of the Warm Homes Healthy People scheme 2013,21/03/2013,87510,450.00,Revenue,Central Lancs Dial-A-Ride Ltd,16617
Chorley Borough Council,http://statistics.data.gov.uk/id/local-authority/30UE,Corporate Management,1008,Streetscene & Leisure Contracts,Other Contributions,40145,Grants and Subscriptions,5031,Administration service for the transport element of the Warm Homes Healthy People Project,21/03/2013,87511,459.00,Revenue,Central Lancs Dial-A-Ride Ltd,16617
Chorley Borough Council,http://statistics.data.gov.uk/id/local-authority/30UE,Community Development,1097,Governance,Grants To Other Organisations,40127,Grants and Subscriptions,5031,Community Grant Funding,21/03/2013,87441,500.00,Revenue,Charnock Richard Community Centre Trust,22139
Chorley Borough Council,http://statistics.data.gov.uk/id/local-authority/30UE,Parking Services,1066,Streetscene & Leisure Contracts,External Contractors,50008,Private Contractors,5042,Back office processes,06/03/2013,86753,586.64,Revenue,Chipside Ltd,22063
Chorley Borough Council,http://statistics.data.gov.uk/id/local-authority/30UE,Parking Services,1066,Streetscene & Leisure Contracts,External Contractors,50008,Private Contractors,5042,Provision of Notice Processing Services Automated telephone and internet payments Internet Evidence,26/03/2013,87665,"1,110.54",Revenue,Chipside Ltd,22063
Chorley Borough Council,http://statistics.data.gov.uk/id/local-authority/30UE,Parking Services,1066,Streetscene & Leisure Contracts,External Contractors,50008,Private Contractors,5042,Provision of Notice Processing Services Automated telephone and internet payments Internet Evidence,26/03/2013,87666,"1,600.98",Revenue,Chipside Ltd,22063
Chorley Borough Council,http://statistics.data.gov.uk/id/local-authority/30UE,Community Development,1097,Governance,Grants To Other Organisations,40127,Grants and Subscriptions,5031,Community Grant Funding 2013,13/03/2013,87264,300.00,Revenue,Chorley & South Ribble Shopmobility,18403
Chorley Borough Council,http://statistics.data.gov.uk/id/local-authority/30UE,Corporate Management,1008,Health Environment & Neighbourhoods,Taxi Testing & Vehicle Safety Report,40234,Services,5027,MOT,15/03/2013,87422,493.65,Revenue,Chorley Autocare Ltd,17110
Chorley Borough Council,http://statistics.data.gov.uk/id/local-authority/30UE,Regulatory Services,1048,Health Environment & Neighbourhoods,Taxi Testing & Vehicle Safety Report,40234,Services,5027,MOT,15/03/2013,87422,76.95,Revenue,Chorley Autocare Ltd,17110
Chorley Borough Council,http://statistics.data.gov.uk/id/local-authority/30UE,Community Development,1097,Governance,Grants To Other Organisations,40127,Grants and Subscriptions,5031,Community Grant Funding 2013,06/03/2013,87196,500.00,Revenue,Chorley School Boys u`15,58534
Chorley Borough Council,http://statistics.data.gov.uk/id/local-authority/30UE,Community Development,1097,Policy & Performance,Citizens Advice Bureau,40125,Grants and Subscriptions,5031,CAB Financial Capability Project,06/03/2013,86749,"2,600.00",Revenue,Chorley Sth Ribble & Dist Citizen Advice Bureaux,17035
Chorley Borough Council,http://statistics.data.gov.uk/id/local-authority/30UE,Service Management & Support,1009,Streetscene & Leisure Contracts,Transport Operating Leases,30029,Contrct Hire & Operating Lease,5018,Rental 31st March 2013 to 30th March 2014 - Mega truck dropside tipper MX06 UKJ,21/03/2013,87466,363.00,Revenue,Chrystal Consulting,17613
Chorley Borough Council,http://statistics.data.gov.uk/id/local-authority/30UE,Community Safety Crime Reduct,1043,Streetscene & Leisure Contracts,Transport Operating Leases,30029,Contrct Hire & Operating Lease,5018,Rental 31st March 2013 to 30th March 2014 Vauxhall Combo MJ56 GKO,21/03/2013,87466,745.00,Revenue,Chrystal Consulting,17613
Chorley Borough Council,http://statistics.data.gov.uk/id/local-authority/30UE,Corporate Management,1008,Streetscene & Leisure Contracts,Transport Operating Leases,30029,Contrct Hire & Operating Lease,5018,Rental 31st March 2013 to 30th March 2014 Vauxhall Combo MJ56 OZF,21/03/2013,87466,738.00,Revenue,Chrystal Consulting,17613
Chorley Borough Council,http://statistics.data.gov.uk/id/local-authority/30UE,Corporate Management,1008,Streetscene & Leisure Contracts,Transport Operating Leases,30029,Contrct Hire & Operating Lease,5018,Rental 31st March 2013 to 30th March 2014 Vauxhall Combo MJ56 OZK,21/03/2013,87466,738.00,Revenue,Chrystal Consulting,17613
Chorley Borough Council,http://statistics.data.gov.uk/id/local-authority/30UE,Community Safety Crime Reduct,1043,Streetscene & Leisure Contracts,Transport Operating Leases,30029,Contrct Hire & Operating Lease,5018,Rental 31st March 2013 to 30th March 2014 Vauxhall Combo MF06 NYA,21/03/2013,87466,581.00,Revenue,Chrystal Consulting,17613
Chorley Borough Council,http://statistics.data.gov.uk/id/local-authority/30UE,Community Safety Crime Reduct,1043,Streetscene & Leisure Contracts,Transport Operating Leases,30029,Contrct Hire & Operating Lease,5018,Rental 31st March 2013 to 30th March 2014 Vauxhall Combo MA06 EEH,21/03/2013,87466,581.00,Revenue,Chrystal Consulting,17613
Chorley Borough Council,http://statistics.data.gov.uk/id/local-authority/30UE,Service Management & Support,1009,Streetscene & Leisure Contracts,Transport Operating Leases,30029,Contrct Hire & Operating Lease,5018,Rental 31st March 2013 to 30th March 2014 rental of Isuzu NQR Double Cab Beavertail DK56 JWO,21/03/2013,87467,"2,387.00",Revenue,Chrystal Consulting,17613
Chorley Borough Council,http://statistics.data.gov.uk/id/local-authority/30UE,Service Management & Support,1009,Streetscene & Leisure Contracts,Transport Operating Leases,30029,Contrct Hire & Operating Lease,5018,Rental 31st March 2013 to 30th March 2014 rental of Isuzu NQR Double Cab Beavertail DK56 JWL,21/03/2013,87467,"2,387.00",Revenue,Chrystal Consulting,17613
Chorley Borough Council,http://statistics.data.gov.uk/id/local-authority/30UE,Corporate Management,1008,Policy & Performance,Professional Fees,40063,Services,5027,2 x Sign language interpreters for Equality Forum meeting on Monday 21st January 2013,15/03/2013,87413,283.50,Revenue,Co Sign Ltd,17135
Chorley Borough Council,http://statistics.data.gov.uk/id/local-authority/30UE,Economic Development,1096,Economic Development,Grants To Other Organisations,40127,Grants and Subscriptions,5031,Starting in Business - Capital,08/03/2013,87230,250.00,Revenue,ComputaCare,58144
Chorley Borough Council,http://statistics.data.gov.uk/id/local-authority/30UE,Service Management & Support,1009,Streetscene & Leisure Contracts,Training Course Fees,17010,Indirect Employee Expenses,5002,CPC Training,28/03/2013,87630,"1,203.00",Revenue,Construction Learning World,22217
Chorley Borough Council,http://statistics.data.gov.uk/id/local-authority/30UE,Central Support Services,1009,HR & Org. Development,Service Fees,40056,Services,5027,Counselling sessions for several members of staff,26/03/2013,87550,"1,320.00",Revenue,Counselling and Training Alliance,22273
Chorley Borough Council,http://statistics.data.gov.uk/id/local-authority/30UE,Capital,Capital,Housing,Grants,3002,Capital Expenditure,Capital,Capital Works - Disable Facility Grant,01/03/2013,87073,690.00,Capital,Crown Construction (Lancs) Ltd,20444
Chorley Borough Council,http://statistics.data.gov.uk/id/local-authority/30UE,Central Support Services,1009,Chief Executives Office,Furniture - Maintenance,40014,"Equipment, Furniture & Materia",5023,Breakdown Service Agreement for Sirocco 1080 Laminator Serial No K50150 24/03/13 to 23/03/14,13/03/2013,87294,300.00,Revenue,D & P E Services,39507
Chorley Borough Council,http://statistics.data.gov.uk/id/local-authority/30UE,Building Control,1090,Planning,Refunds,40220,Miscellaneous Expenses,5034,Refund on building control application,01/03/2013,87077,399.36,Revenue,NAME REDACTED,57866
Chorley Borough Council,http://statistics.data.gov.uk/id/local-authority/30UE,Service Management & Support,1009,Streetscene & Leisure Contracts,Hire Of Transport,30028,Contrct Hire & Operating Lease,5018,hire of a sweeper,21/03/2013,87085,"1,510.00",Revenue,Dawson Rental Sweepers,22011
Chorley Borough Council,http://statistics.data.gov.uk/id/local-authority/30UE,Service Management & Support,1009,Streetscene & Leisure Contracts,Hire Of Transport,30028,Contrct Hire & Operating Lease,5018,Rentaln of compact sweeper,26/03/2013,87221,"1,880.00",Revenue,Dawson Rental Sweepers,22011
Chorley Borough Council,http://statistics.data.gov.uk/id/local-authority/30UE,Service Management & Support,1009,Streetscene & Leisure Contracts,Hire Of Transport,30028,Contrct Hire & Operating Lease,5018,Hire of Johnston VT650 16 week period at price quoted,26/03/2013,87222,"2,340.00",Revenue,Dawson Rental Sweepers,22011
Chorley Borough Council,http://statistics.data.gov.uk/id/local-authority/30UE,Service Management & Support,1009,Streetscene & Leisure Contracts,Hire Of Transport,30028,Contrct Hire & Operating Lease,5018,Rental of sweeper,26/03/2013,87418,570.00,Revenue,Dawson Rental Sweepers,22011
Chorley Borough Council,http://statistics.data.gov.uk/id/local-authority/30UE,Service Management & Support,1009,Streetscene & Leisure Contracts,Supplies-Grounds Maintenance,40025,"Equipment, Furniture & Materia",5023,Wet pour repairs for play areas Foxcote & Buttermere,13/03/2013,87338,"1,150.00",Revenue,DCM Premier Play Surfaces,20205
Chorley Borough Council,http://statistics.data.gov.uk/id/local-authority/30UE,Democratic Represent and  Mgnt,1007,Streetscene & Leisure Contracts,Publicity - Advertising,40157,Miscellaneous Expenses,5034,Silk wedding flower arrangements and accessories,08/03/2013,87189,430.04,Revenue,NAME REDACTED,58138
Chorley Borough Council,http://statistics.data.gov.uk/id/local-authority/30UE,Precepts and Collection Fund,Precept,Shared Service Arrangement,NNDR Pool Contributions,2007,Precepts & Collection Fund,Precept,NNDR Contribution,27/03/2013,87705,"698,522.12",Revenue,Department of Communities and Local Government,16280
Chorley Borough Council,http://statistics.data.gov.uk/id/local-authority/30UE,Precepts and Collection Fund,Precept,Shared Service Arrangement,NNDR Pool Contributions,2007,Precepts & Collection Fund,Precept,NNDR Contribution,27/03/2013,87706,"698,522.12",Revenue,Department of Communities and Local Government,16280
Chorley Borough Council,http://statistics.data.gov.uk/id/local-authority/30UE,Corporate Management,1008,Health Environment & Neighbourhoods,CRB Disclosure Fees,40070,Services,5027,Disclosure & Barring Service checks for BPO (Licensing),27/03/2013,86730,132.00,Revenue,Disclosure & Barring Service,16387
Chorley Borough Council,http://statistics.data.gov.uk/id/local-authority/30UE,Central Support Services,1009,Health Environment & Neighbourhoods,HR Recruitment Expenses,15200,Indirect Employee Expenses,5002,"Disclosure & Barring Service checkNumber: 20039400123",27/03/2013,86730,264.00,Revenue,Disclosure & Barring Service,16387
Chorley Borough Council,http://statistics.data.gov.uk/id/local-authority/30UE,Building Control,1090,Planning,General Subscriptions,40146,Grants and Subscriptions,5031,LABC Service Fee 2013/14 - Customer Account 0211  Invoice: 9475,13/03/2013,87302,"1,918.68",Revenue,District Surveyors Association Limited,17538
Chorley Borough Council,http://statistics.data.gov.uk/id/local-authority/30UE,Unapportionable Central OHeads,1009,Shared Service Arrangement,General Subscriptions,40146,Grants and Subscriptions,5031,Annual Subscription to the Chest - Chorley Council period 1st April 2013 to 31st March 2014,22/03/2013,87539,"1,530.00",Revenue,Due North LTD,22498
Chorley Borough Council,http://statistics.data.gov.uk/id/local-authority/30UE,Central Support Services,1009,Shared Service Arrangement,General Subscriptions,40146,Grants and Subscriptions,5031,Annual Subscription to the Chest - South Ribble Borough Council - Period 1 April 2013 to 31 March 2014,22/03/2013,87540,"1,530.00",Revenue,Due North LTD,22498
Chorley Borough Council,http://statistics.data.gov.uk/id/local-authority/30UE,Capital,Capital,Housing,Staying-Put Grant,3003,Capital Expenditure,Capital,Capital Works - Disable Facilitate Grant,01/03/2013,87075,500.00,Capital,DWT Property Services,58399
Chorley Borough Council,http://statistics.data.gov.uk/id/local-authority/30UE,Service Management & Support,1009,Streetscene & Leisure Contracts,Diesel/Derv,30007,Direct Transport Costs,5016,Supply Road diesel at your price as per the chest for 8000litres,13/03/2013,87334,"9,464.00",Revenue,EmoOil Ltd,19926
Chorley Borough Council,http://statistics.data.gov.uk/id/local-authority/30UE,Economic Development,1096,Economic Development,Grants To Other Organisations,40127,Grants and Subscriptions,5031,Staring in business Grant - Capital Expenditure,08/03/2013,87151,"1,000.00",Revenue,Environment 4 Logistics Ltd,58306
Chorley Borough Council,http://statistics.data.gov.uk/id/local-authority/30UE,Central Support Services,1009,"Customer, ICT & Transactional",Computer Software-Maintenance,40107,Communication and Computing,5028,2 days professional services for Local View Fusion Online,21/03/2013,87317,"2,290.00",Revenue,ESRI (UK) Ltd,19692
Chorley Borough Council,http://statistics.data.gov.uk/id/local-authority/30UE,Democratic Represent and  Mgnt,1007,Streetscene & Leisure Contracts,Rent/Hire Of Premises,20017,Premises Rents,5007,"Duxbury Coach House Rent - 10,625.00 per qtr",26/03/2013,87402,"10,625.00",Revenue,European Settled Estates Plc,16495
Chorley Borough Council,http://statistics.data.gov.uk/id/local-authority/30UE,Democratic Represent and  Mgnt,1007,Streetscene & Leisure Contracts,Rent/Hire Of Premises,20017,Premises Rents,5007,"Duxbury Coach House Service Charge - 1,125.00 per qtr ",26/03/2013,87402,"1,125.00",Revenue,European Settled Estates Plc,16495
Chorley Borough Council,http://statistics.data.gov.uk/id/local-authority/30UE,Community Development,1097,Planning,Grants To Other Organisations,40127,Grants and Subscriptions,5031,Play and Recreation Fund - Final Tranche of Award towards Develop0ment of Euxton Skatepark,13/03/2013,87267,"4,898.00",Revenue,Euxton Parish Council,16838
Chorley Borough Council,http://statistics.data.gov.uk/id/local-authority/30UE,Democratic Represent and  Mgnt,1007,Streetscene & Leisure Contracts,Miscellaneous Expenses,40200,Miscellaneous Expenses,5034,10 litre laurel,01/03/2013,87138,255.00,Revenue,Everglades Nurseries Ltd,20202
Chorley Borough Council,http://statistics.data.gov.uk/id/local-authority/30UE,Local Tax Collection,1010,"Customer, ICT & Transactional",Search Fees,40068,Services,5027,"Searches - Phone No`s and Company Reports etc 1/ Business Information, 2/ Consumer Business",01/03/2013,86718,"1,575.00",Revenue,Experian Limited,17797
Chorley Borough Council,http://statistics.data.gov.uk/id/local-authority/30UE,Local Tax Collection,1010,"Customer, ICT & Transactional",Search Fees,40068,Services,5027,"Other Searches - Phone No`s 1/ Business Information, 2/ Consumer Business",01/03/2013,86718,"1,000.00",Revenue,Experian Limited,17797
Chorley Borough Council,http://statistics.data.gov.uk/id/local-authority/30UE,Economic Development,1096,Economic Development,Publicity - Advertising,40157,Miscellaneous Expenses,5034,"Half Page colour March 2013 Issu200 words editorial + image",15/03/2013,87404,300.00,Revenue,Expo Management Ltd (Coach Monthly),20551
Chorley Borough Council,http://statistics.data.gov.uk/id/local-authority/30UE,Service Management & Support,1009,Streetscene & Leisure Contracts,Hire Of Transport,30028,Contrct Hire & Operating Lease,5018,Hire of Case tractor and McConnell Flail cutter for 21 week period,22/03/2013,86932,"1,700.00",Revenue,F R Sharrock Ltd,18091
Chorley Borough Council,http://statistics.data.gov.uk/id/local-authority/30UE,Service Management & Support,1009,Streetscene & Leisure Contracts,Tools & Equipment - Maintenance,40005,"Equipment, Furniture & Materia",5023,Supply 2 x new cutting cylinders and various other items for Ransome Super Certes bowling green machines,22/03/2013,87516,388.88,Revenue,F R Sharrock Ltd,18091
Chorley Borough Council,http://statistics.data.gov.uk/id/local-authority/30UE,Democratic Represent and  Mgnt,1007,Health Environment & Neighbourhoods,Training Course Fees,17010,Indirect Employee Expenses,5002,"Provide place for Peter O`Neill on FA Youth Module level three-developing the play.",28/03/2013,87547,345.00,Revenue,FA Learning,58005
Chorley Borough Council,http://statistics.data.gov.uk/id/local-authority/30UE,Service Management & Support,1009,Streetscene & Leisure Contracts,External Contractor,40198,Miscellaneous Expenses,5034,Carryout tree works at ADDRESS REDACTED has requested,15/03/2013,87424,140.00,Revenue,Fassfern Forestry,54839
Chorley Borough Council,http://statistics.data.gov.uk/id/local-authority/30UE,Service Management & Support,1009,Streetscene & Leisure Contracts,External Contractor,40198,Miscellaneous Expenses,5034,Carryout tree works at ADDRESS REDACTED as requested,15/03/2013,87424,140.00,Revenue,Fassfern Forestry,54839
Chorley Borough Council,http://statistics.data.gov.uk/id/local-authority/30UE,Service Management & Support,1009,Streetscene & Leisure Contracts,External Contractor,40198,Miscellaneous Expenses,5034,Carryout hedge laying at ADDRESS REDACTED as requested,15/03/2013,87424,"1,940.00",Revenue,Fassfern Forestry,54839
Chorley Borough Council,http://statistics.data.gov.uk/id/local-authority/30UE,Central Support Services,1009,HR & Org. Development,Legal Fees,40171,Miscellaneous Expenses,5034,Professional Charges. Legal Fees,26/03/2013,87549,858.00,Revenue,Forbes Solicitors,17527
Chorley Borough Council,http://statistics.data.gov.uk/id/local-authority/30UE,Service Management & Support,1009,Streetscene & Leisure Contracts,Freight Transport Assoc Fees,40150,Grants and Subscriptions,5031,Carryout 6 weekly safety inspection on DK56JWO for Olicence compliance,15/03/2013,87407,109.50,Revenue,Freight Transport Assoc Ltd,16333
Chorley Borough Council,http://statistics.data.gov.uk/id/local-authority/30UE,Service Management & Support,1009,Streetscene & Leisure Contracts,Freight Transport Assoc Fees,40150,Grants and Subscriptions,5031,Carryout 6 weekly safety inspection on PN02HRL for Olicence compliance,15/03/2013,87407,109.50,Revenue,Freight Transport Assoc Ltd,16333
Chorley Borough Council,http://statistics.data.gov.uk/id/local-authority/30UE,Service Management & Support,1009,Streetscene & Leisure Contracts,Freight Transport Assoc Fees,40150,Grants and Subscriptions,5031,Carryout 6 weekly safety inspection on DK05CXG for Olicence compliance,15/03/2013,87407,109.50,Revenue,Freight Transport Assoc Ltd,16333
Chorley Borough Council,http://statistics.data.gov.uk/id/local-authority/30UE,Service Management & Support,1009,Streetscene & Leisure Contracts,Freight Transport Assoc Fees,40150,Grants and Subscriptions,5031,Carryout 6 weekly safety inspection on DX55CVG for Olicence compliance,15/03/2013,87407,109.50,Revenue,Freight Transport Assoc Ltd,16333
Chorley Borough Council,http://statistics.data.gov.uk/id/local-authority/30UE,Service Management & Support,1009,Streetscene & Leisure Contracts,Freight Transport Assoc Fees,40150,Grants and Subscriptions,5031,Carryout 6 weekly safety inspection on DK56JWL for Olicence compliance,15/03/2013,87407,109.50,Revenue,Freight Transport Assoc Ltd,16333
Chorley Borough Council,http://statistics.data.gov.uk/id/local-authority/30UE,Service Management & Support,1009,Streetscene & Leisure Contracts,Freight Transport Assoc Fees,40150,Grants and Subscriptions,5031,Carryout 6 weekly safety inspection on DK07LDE for Olicence compliance,15/03/2013,87407,109.50,Revenue,Freight Transport Assoc Ltd,16333
Chorley Borough Council,http://statistics.data.gov.uk/id/local-authority/30UE,Democratic Represent and  Mgnt,1007,Streetscene & Leisure Contracts,Security Service,40062,Services,5027,Leisure Centres Feb 13,21/03/2013,87459,233.78,Revenue,G4S Cash Solutions UK Ltd,22099
Chorley Borough Council,http://statistics.data.gov.uk/id/local-authority/30UE,Unapportionable Central OHeads,1009,Streetscene & Leisure Contracts,Security Service,40062,Services,5027,Union Street Feb 13,21/03/2013,87459,47.49,Revenue,G4S Cash Solutions UK Ltd,22099
Chorley Borough Council,http://statistics.data.gov.uk/id/local-authority/30UE,Homelessness,1075,Streetscene & Leisure Contracts,Security Service,40062,Services,5027,Cotswold House,21/03/2013,87459,23.75,Revenue,G4S Cash Solutions UK Ltd,22099
Chorley Borough Council,http://statistics.data.gov.uk/id/local-authority/30UE,Business Support,1095,Governance,Gas,20014,Energy Costs,5006,Gas at Gillibrand Street,26/03/2013,87558,879.48,Revenue,Gazprom Energy,56502
Chorley Borough Council,http://statistics.data.gov.uk/id/local-authority/30UE,Business Support,1095,Governance,Gas,20014,Energy Costs,5006,Gas at Gillibrand Street,26/03/2013,87559,281.45,Revenue,Gazprom Energy,56502
Chorley Borough Council,http://statistics.data.gov.uk/id/local-authority/30UE,Service Management & Support,1009,Streetscene & Leisure Contracts,Supplies-Grounds Maintenance,40025,"Equipment, Furniture & Materia",5023,10 Large Flat Seats,26/03/2013,87589,292.95,Revenue,GB Sport & Leisure,21305
Chorley Borough Council,http://statistics.data.gov.uk/id/local-authority/30UE,Economic Development,1096,Economic Development,Grants To Other Organisations,40127,Grants and Subscriptions,5031,Starting in business grant - Capital Expenditure,08/03/2013,87152,"1,000.00",Revenue,Gill Brunt t/as Ollies Knits,58528
Chorley Borough Council,http://statistics.data.gov.uk/id/local-authority/30UE,Corporate Management,1008,Health Environment & Neighbourhoods,Vandalism Repairs,20005,Repairs Maintenance & Alts,5005,Contract for detection and removal of graffiti and proactive value. ,13/03/2013,87223,"1,662.50",Revenue,Graffiti Removal (North) Ltd,17320
Chorley Borough Council,http://statistics.data.gov.uk/id/local-authority/30UE,Capital,Capital,Streetscene & Leisure Contracts,Main Contractor,3007,Capital Expenditure,Capital,Longfield,22/02/2013,86791,"31,100.54",Capital,Groundwork Lancs West & Wigan,18150
Chorley Borough Council,http://statistics.data.gov.uk/id/local-authority/30UE,Capital,Capital,Streetscene & Leisure Contracts,Main Contractor,3007,Capital Expenditure,Capital,Longfield Avenue Scheme - Design Fees,15/03/2013,87430,"5,850.00",Capital,Groundwork Lancs West & Wigan,18150
Chorley Borough Council,http://statistics.data.gov.uk/id/local-authority/30UE,Capital,Capital,Streetscene & Leisure Contracts,Main Contractor,3007,Capital Expenditure,Capital,Longfield Avenue Scheme - Contribution to build costs,15/03/2013,87430,"25,250.54",Capital,Groundwork Lancs West & Wigan,18150
Chorley Borough Council,http://statistics.data.gov.uk/id/local-authority/30UE,Elections,1012,Governance,Computer Software-Maintenance,40107,Communication and Computing,5028,Annual support for Document Management licence,13/03/2013,87376,"1,409.89",Revenue,Halarose Limited,18133
Chorley Borough Council,http://statistics.data.gov.uk/id/local-authority/30UE,Elections,1012,Governance,Computer Software-Maintenance,40107,Communication and Computing,5028,Annual support for AVantGuard Auto network lic + 1 non auto,13/03/2013,87376,"5,886.62",Revenue,Halarose Limited,18133
Chorley Borough Council,http://statistics.data.gov.uk/id/local-authority/30UE,Economic Development,1096,Economic Development,Hospitality,40201,Miscellaneous Expenses,5034,Refreshments for Choose Chorley Business Network on Thursday 7th march 2013,26/03/2013,87579,487.50,Revenue,Halls Bakery Ltd,21415
Chorley Borough Council,http://statistics.data.gov.uk/id/local-authority/30UE,Service Management & Support,1009,Streetscene & Leisure Contracts,Grants To Other Organisations,40127,Grants and Subscriptions,5031,Contribution towards Skate Park at Heskin,26/03/2013,87600,"3,000.00",Revenue,Heskin Parish Council,17029
Chorley Borough Council,http://statistics.data.gov.uk/id/local-authority/30UE,Economic Development,1096,Economic Development,Grants To Other Organisations,40127,Grants and Subscriptions,5031,Starting in business grant - Capital Expenditure,15/03/2013,87355,434.53,Revenue,NAME REDACTED,58293
Chorley Borough Council,http://statistics.data.gov.uk/id/local-authority/30UE,Economic Development,1096,Economic Development,Grants To Other Organisations,40127,Grants and Subscriptions,5031,Starting in Business Grant - Capital Expenditure,26/03/2013,87601,565.47,Revenue,NAME REDACTED,58293
Chorley Borough Council,http://statistics.data.gov.uk/id/local-authority/30UE,Central Support Services,1009,"Customer, ICT & Transactional",Computer Software-Purchase,40100,Communication and Computing,5028,Acrobat Standard V11 Upgrade from either Pro or Std back to version 8 only.,01/03/2013,87137,514.96,Revenue,Insight Direct (UK) LTD,21768
Chorley Borough Council,http://statistics.data.gov.uk/id/local-authority/30UE,Unapportionable Central OHeads,1009,"Customer, ICT & Transactional",Computer Equipment-Purchase,40098,Communication and Computing,5028,"SAMSUNG 46IN FULL HD SMARTFREESAT WIFI LED TV",06/03/2013,87181,"1,384.12",Revenue,Insight Direct (UK) LTD,21768
Chorley Borough Council,http://statistics.data.gov.uk/id/local-authority/30UE,Central Support Services,1009,"Customer, ICT & Transactional",Computer Equipment-Purchase,40098,Communication and Computing,5028,Toshiba Tecra R940-1FH 14``/Core i3-3110M 4GB 320GB DVD-SM AGN BT Btooth/1MP/3Yr/TPM/Exp Card,08/03/2013,87219,464.53,Revenue,Insight Direct (UK) LTD,21768
Chorley Borough Council,http://statistics.data.gov.uk/id/local-authority/30UE,Central Support Services,1009,"Customer, ICT & Transactional",Computer Equipment-Purchase,40098,Communication and Computing,5028,SAMSUNG 55IN FULL HD SMARTFREESAT WIFI LED TV,22/03/2013,87423,"1,097.61",Revenue,Insight Direct (UK) LTD,21768
Chorley Borough Council,http://statistics.data.gov.uk/id/local-authority/30UE,Central Support Services,1009,"Customer, ICT & Transactional",Computer Equipment-Purchase,40098,Communication and Computing,5028,"Synology RackStation RS212 - NAS server - 2 TB, Insight Part Number: 0001552730",26/03/2013,87679,925.72,Revenue,Insight Direct (UK) LTD,21768
Chorley Borough Council,http://statistics.data.gov.uk/id/local-authority/30UE,Unapportionable Central OHeads,1009,"Customer, ICT & Transactional",Computer Equipment-Purchase,40098,Communication and Computing,5028,Power ethernet wall socket with 1x 13amp socket and 4x RJ45 data ports - 1mtr lead,01/03/2013,87127,258.00,Revenue,Interconnect Network Systems,21292
Chorley Borough Council,http://statistics.data.gov.uk/id/local-authority/30UE,Central Support Services,1009,"Customer, ICT & Transactional",Computer Equipment-Purchase,40098,Communication and Computing,5028,Power ethernet wall socket with 1x 13amp socket and 4x RJ45 data ports - 3mtr lead,01/03/2013,87127,88.00,Revenue,Interconnect Network Systems,21292
Chorley Borough Council,http://statistics.data.gov.uk/id/local-authority/30UE,Unapportionable Central OHeads,1009,"Customer, ICT & Transactional",Computer Equipment-Purchase,40098,Communication and Computing,5028,Cat5e patch lead 1.0mtr GY,01/03/2013,87127,4.00,Revenue,Interconnect Network Systems,21292
Chorley Borough Council,http://statistics.data.gov.uk/id/local-authority/30UE,Service Management & Support,1009,Streetscene & Leisure Contracts,Vehicle Trackers,30046,Direct Transport Costs,5016,Yearly lease rental for vehicle tracking system,26/03/2013,86125,795.80,Revenue,Investec Asset Finance Plc,53879
Chorley Borough Council,http://statistics.data.gov.uk/id/local-authority/30UE,Service Management & Support,1009,Streetscene & Leisure Contracts,Vehicle Trackers,30046,Direct Transport Costs,5016,Yearly lease rental for vehicle tracking system,26/03/2013,86449,795.80,Revenue,Investec Asset Finance Plc,53879
Chorley Borough Council,http://statistics.data.gov.uk/id/local-authority/30UE,Community Development,1097,Shared Service Arrangement,Premises Related Insurances,20068,Premises Related Insurance,5014,Rent due on 35/37 Market street Chorley,26/03/2013,87364,"7,218.75",Revenue,J R Keys,17124
Chorley Borough Council,http://statistics.data.gov.uk/id/local-authority/30UE,Service Management & Support,1009,Streetscene & Leisure Contracts,Transport Operating Leases,30029,Contrct Hire & Operating Lease,5018,Lease of Isuzu DK55 EEF from 31/03/13,21/03/2013,87460,"1,362.02",Revenue,Jcb Finance Ltd,17684
Chorley Borough Council,http://statistics.data.gov.uk/id/local-authority/30UE,Service Management & Support,1009,Streetscene & Leisure Contracts,Transport Operating Leases,30029,Contrct Hire & Operating Lease,5018,Lease of Isuzu NPR DX55 CVG from 31/03/13,21/03/2013,87460,949.74,Revenue,Jcb Finance Ltd,17684
Chorley Borough Council,http://statistics.data.gov.uk/id/local-authority/30UE,Service Management & Support,1009,Streetscene & Leisure Contracts,Transport Operating Leases,30029,Contrct Hire & Operating Lease,5018,Lease of Isuzu DK05 CXG from 31/03/13,21/03/2013,87460,754.84,Revenue,Jcb Finance Ltd,17684
Chorley Borough Council,http://statistics.data.gov.uk/id/local-authority/30UE,Unapportionable Central OHeads,1009,"Customer, ICT & Transactional",Consultants` Fees,40077,Services,5027,Consultancy services as agreed with Chorley Council 6.5 days on the revenues and Benefits Review,26/03/2013,87633,"1,500.00",Revenue,REDACTED PERSONAL DATA,21745
Chorley Borough Council,http://statistics.data.gov.uk/id/local-authority/30UE,Democratic Represent and  Mgnt,1007,Streetscene & Leisure Contracts,Maintenance/Nature Reserves,20045,Grounds Maintenance Costs,5013,20 @ 3.6m x 150mm x 75mm,13/03/2013,87240,210.00,Revenue,John H Mayor & Sons Ltd,16635
Chorley Borough Council,http://statistics.data.gov.uk/id/local-authority/30UE,Democratic Represent and  Mgnt,1007,Streetscene & Leisure Contracts,Maintenance/Nature Reserves,20045,Grounds Maintenance Costs,5013,20 @ 3.6m x 150mm x 50mm,13/03/2013,87240,129.40,Revenue,John H Mayor & Sons Ltd,16635
Chorley Borough Council,http://statistics.data.gov.uk/id/local-authority/30UE,Democratic Represent and  Mgnt,1007,Streetscene & Leisure Contracts,Maintenance/Nature Reserves,20045,Grounds Maintenance Costs,5013,15 @ 3.6 x 100mm x 100mm,13/03/2013,87240,129.60,Revenue,John H Mayor & Sons Ltd,16635
Chorley Borough Council,http://statistics.data.gov.uk/id/local-authority/30UE,Democratic Represent and  Mgnt,1007,Streetscene & Leisure Contracts,Maintenance/Nature Reserves,20045,Grounds Maintenance Costs,5013,20 @ 3.6m x 100mm x 37mm,13/03/2013,87240,65.60,Revenue,John H Mayor & Sons Ltd,16635
Chorley Borough Council,http://statistics.data.gov.uk/id/local-authority/30UE,Democratic Represent and  Mgnt,1007,Streetscene & Leisure Contracts,Maintenance/Nature Reserves,20045,Grounds Maintenance Costs,5013,30 @ 3.6m x 75mm x 75mm,13/03/2013,87240,158.10,Revenue,John H Mayor & Sons Ltd,16635
Chorley Borough Council,http://statistics.data.gov.uk/id/local-authority/30UE,Planning Policy,1092,Planning,Statutory Notices,40160,Miscellaneous Expenses,5034,"Public Notice - Open Space And Playing Pitch Consultation LDF Chorley Guardian and LEP",01/03/2013,86764,773.91,Revenue,Johnston Publishing Ltd,20072
Chorley Borough Council,http://statistics.data.gov.uk/id/local-authority/30UE,Development Control,1091,Planning,Statutory Notices,40160,Miscellaneous Expenses,5034,Public Notices to appear in the Chorley Guardian April 2012 - March 2012,01/03/2013,86765,258.01,Revenue,Johnston Publishing Ltd,20072
Chorley Borough Council,http://statistics.data.gov.uk/id/local-authority/30UE,Corporate Management,1008,Policy & Performance,Publicity - Advertising,40157,Miscellaneous Expenses,5034,Half page advert for the Warm Homes Healthy People campaign in the LEP 2/2 and Chorley Guardian 6/2,06/03/2013,86766,582.00,Revenue,Johnston Publishing Ltd,20072
Chorley Borough Council,http://statistics.data.gov.uk/id/local-authority/30UE,Development Control,1091,Planning,Statutory Notices,40160,Miscellaneous Expenses,5034,Public Notices to appear in the Chorley Guardian April 2012 - March 2012,01/03/2013,86990,271.59,Revenue,Johnston Publishing Ltd,20072
Chorley Borough Council,http://statistics.data.gov.uk/id/local-authority/30UE,Development Control,1091,Planning,Statutory Notices,40160,Miscellaneous Expenses,5034,Public Notices to appear in the Chorley Guardian April 2012 - March 2012,08/03/2013,87226,312.33,Revenue,Johnston Publishing Ltd,20072
Chorley Borough Council,http://statistics.data.gov.uk/id/local-authority/30UE,Culture & Heritage,1036,Streetscene & Leisure Contracts,Publicity - Advertising,40157,Miscellaneous Expenses,5034,One half page Astley weddings advertisement,26/03/2013,87694,420.69,Revenue,Johnston Publishing Ltd,20072
Chorley Borough Council,http://statistics.data.gov.uk/id/local-authority/30UE,Development Control,1091,Planning,Statutory Notices,40160,Miscellaneous Expenses,5034,Public Notices to appear in the Chorley Guardian April 2012 - March 2012,28/03/2013,87695,366.65,Revenue,Johnston Publishing Ltd,20072
Chorley Borough Council,http://statistics.data.gov.uk/id/local-authority/30UE,Community Safety Crime Reduct,1043,Health Environment & Neighbourhoods,Impounded Dogs Costs,40207,Miscellaneous Expenses,5034,Kennelling fees for 2012/13,15/03/2013,87381,365.00,Revenue,K A Dewhurst,16734
Chorley Borough Council,http://statistics.data.gov.uk/id/local-authority/30UE,Corporate Management,1008,Health Environment & Neighbourhoods,Impounded Dogs Costs,40207,Miscellaneous Expenses,5034,Kennelling fees for 2012/13,15/03/2013,87382,895.00,Revenue,K A Dewhurst,16734
Chorley Borough Council,http://statistics.data.gov.uk/id/local-authority/30UE,Capital,Capital,Housing,Grants,3002,Capital Expenditure,Capital,Capital Works - Disable Facility Grant,01/03/2013,87074,"2,710.00",Capital,K Berry Ltd,16421
Chorley Borough Council,http://statistics.data.gov.uk/id/local-authority/30UE,Capital,Capital,Housing,Grants,3002,Capital Expenditure,Capital,DFG ADDRESS REDACTED,21/03/2013,87443,"5,254.00",Capital,K Berry Ltd,16421
Chorley Borough Council,http://statistics.data.gov.uk/id/local-authority/30UE,Capital,Capital,Housing,Grants,3002,Capital Expenditure,Capital,DFG ADDRESS REDACTED,21/03/2013,87445,"2,750.00",Capital,K Berry Ltd,16421
Chorley Borough Council,http://statistics.data.gov.uk/id/local-authority/30UE,Community Safety Crime Reduct,1043,Health Environment & Neighbourhoods,External Contractor,40198,Miscellaneous Expenses,5034,External Contractor,13/03/2013,87284,560.00,Revenue,NAME REDACTED,56874
Chorley Borough Council,http://statistics.data.gov.uk/id/local-authority/30UE,Corporate Management,1008,Health Environment & Neighbourhoods,External Contractor,40198,Miscellaneous Expenses,5034,External Contractor,13/03/2013,87285,472.50,Revenue,NAME REDACTED,56874
Chorley Borough Council,http://statistics.data.gov.uk/id/local-authority/30UE,Community Safety Crime Reduct,1043,Health Environment & Neighbourhoods,External Contractor,40198,Miscellaneous Expenses,5034,External Contractor,13/03/2013,87286,428.75,Revenue,NAME REDACTED,56874
Chorley Borough Council,http://statistics.data.gov.uk/id/local-authority/30UE,Corporate Management,1008,Health Environment & Neighbourhoods,External Contractor,40198,Miscellaneous Expenses,5034,External Contractor,13/03/2013,87287,332.50,Revenue,NAME REDACTED,56874
Chorley Borough Council,http://statistics.data.gov.uk/id/local-authority/30UE,Community Safety Crime Reduct,1043,Health Environment & Neighbourhoods,External Contractor,40198,Miscellaneous Expenses,5034,External Contractor,13/03/2013,87288,612.50,Revenue,NAME REDACTED,56874
Chorley Borough Council,http://statistics.data.gov.uk/id/local-authority/30UE,Corporate Management,1008,Health Environment & Neighbourhoods,External Contractor,40198,Miscellaneous Expenses,5034,External Contractor,13/03/2013,87289,573.12,Revenue,NAME REDACTED,56874
Chorley Borough Council,http://statistics.data.gov.uk/id/local-authority/30UE,Community Safety Crime Reduct,1043,Health Environment & Neighbourhoods,External Contractor,40198,Miscellaneous Expenses,5034,External Contractor,13/03/2013,87290,630.00,Revenue,NAME REDACTED,56874
Chorley Borough Council,http://statistics.data.gov.uk/id/local-authority/30UE,Corporate Management,1008,Health Environment & Neighbourhoods,External Contractor,40198,Miscellaneous Expenses,5034,External Contractor,13/03/2013,87291,791.87,Revenue,NAME REDACTED,56874
Chorley Borough Council,http://statistics.data.gov.uk/id/local-authority/30UE,Democratic Represent and  Mgnt,1007,Streetscene & Leisure Contracts,Printing,40043,"Printing, Stationery & General",5026,Green Flag Award Application Fee for Withenll Local Nature Reserve 2013,13/03/2013,87101,299.00,Revenue,Keep Britain Tidy,22196
Chorley Borough Council,http://statistics.data.gov.uk/id/local-authority/30UE,Democratic Represent and  Mgnt,1007,Streetscene & Leisure Contracts,Publicity - Advertising,40157,Miscellaneous Expenses,5034,"Green Flag Award Application 2012/13 Yarrow Valley Country Park, Chorley",26/03/2013,87583,349.00,Revenue,Keep Britain Tidy,22196
Chorley Borough Council,http://statistics.data.gov.uk/id/local-authority/30UE,Democratic Represent and  Mgnt,1007,Streetscene & Leisure Contracts,Publicity - Advertising,40157,Miscellaneous Expenses,5034,Green Flag award Application 2012/13 Astley Park,26/03/2013,87584,349.00,Revenue,Keep Britain Tidy,22196
Chorley Borough Council,http://statistics.data.gov.uk/id/local-authority/30UE,Democratic Represent and  Mgnt,1007,Streetscene & Leisure Contracts,Other Fees,40212,Miscellaneous Expenses,5034,"Green Flag Award Application 2012/13 Tatton Recreation Ground, Chorley",26/03/2013,87585,299.00,Revenue,Keep Britain Tidy,22196
Chorley Borough Council,http://statistics.data.gov.uk/id/local-authority/30UE,Culture & Heritage,1036,Streetscene & Leisure Contracts,Furniture - Purchase,40012,"Equipment, Furniture & Materia",5023,Key cabinet with electronic lock Key capacity: 100. 550(h) x380(w) x 80(d),21/03/2013,87531,448.00,Revenue,Key Industrial Equipment Ltd,16877
Chorley Borough Council,http://statistics.data.gov.uk/id/local-authority/30UE,Development Control,1091,Governance,Legal Fees,40171,Miscellaneous Expenses,5034,Professional Fees,06/03/2013,87121,"6,050.00",Revenue,Kings Chambers Ltd,48008
Chorley Borough Council,http://statistics.data.gov.uk/id/local-authority/30UE,Development Control,1091,Governance,Legal Fees,40171,Miscellaneous Expenses,5034,Professional Fees,06/03/2013,87131,"1,250.00",Revenue,Kings Chambers Ltd,48008
Chorley Borough Council,http://statistics.data.gov.uk/id/local-authority/30UE,Capital,Capital,Housing,Grants,3002,Capital Expenditure,Capital,Capital works - Disable Facility Grant,06/03/2013,87199,"4,636.00",Capital,Lancashire County Council,17758
Chorley Borough Council,http://statistics.data.gov.uk/id/local-authority/30UE,Capital,Capital,Housing,Grants,3002,Capital Expenditure,Capital,Capital Works - Disable Facility Grant,06/03/2013,87200,"2,440.00",Capital,Lancashire County Council,17758
Chorley Borough Council,http://statistics.data.gov.uk/id/local-authority/30UE,Capital,Capital,Housing,Grants,3002,Capital Expenditure,Capital,Capital Works - Disable facilty Grant,06/03/2013,87201,"2,046.00",Capital,Lancashire County Council,17758
Chorley Borough Council,http://statistics.data.gov.uk/id/local-authority/30UE,Capital,Capital,Housing,Grants,3002,Capital Expenditure,Capital,Capital Works - Disable Facility Grant,06/03/2013,87202,"2,070.50",Capital,Lancashire County Council,17758
Chorley Borough Council,http://statistics.data.gov.uk/id/local-authority/30UE,Capital,Capital,Housing,Grants,3002,Capital Expenditure,Capital,DFG 25 ADDRESS REDACTED,21/03/2013,87446,"2,816.00",Capital,Lancashire County Council,17758
Chorley Borough Council,http://statistics.data.gov.uk/id/local-authority/30UE,Capital,Capital,Housing,Grants,3002,Capital Expenditure,Capital,DFG 46 ADDRESS REDACTED,21/03/2013,87447,562.00,Capital,Lancashire County Council,17758
Chorley Borough Council,http://statistics.data.gov.uk/id/local-authority/30UE,Development Control,1091,Planning,Consultants` Fees,40077,Services,5027,Agricultural Planning Consultations Q3 October - December 2013 application: 12/00684/FUL,28/03/2013,87463,400.00,Revenue,Lancashire County Council,17758
Chorley Borough Council,http://statistics.data.gov.uk/id/local-authority/30UE,Development Control,1091,Planning,Consultants` Fees,40077,Services,5027,Application: 12/00782/FUL,28/03/2013,87463,400.00,Revenue,Lancashire County Council,17758
Chorley Borough Council,http://statistics.data.gov.uk/id/local-authority/30UE,Development Control,1091,Planning,Consultants` Fees,40077,Services,5027,Application: 12/00852/FUL,28/03/2013,87463,400.00,Revenue,Lancashire County Council,17758
Chorley Borough Council,http://statistics.data.gov.uk/id/local-authority/30UE,Development Control,1091,Planning,Consultants` Fees,40077,Services,5027,Application: 12/00865/FUL,28/03/2013,87463,400.00,Revenue,Lancashire County Council,17758
Chorley Borough Council,http://statistics.data.gov.uk/id/local-authority/30UE,Development Control,1091,Planning,Consultants` Fees,40077,Services,5027,Application: 12/01020/FUL,28/03/2013,87463,400.00,Revenue,Lancashire County Council,17758
Chorley Borough Council,http://statistics.data.gov.uk/id/local-authority/30UE,Development Control,1091,Planning,Consultants` Fees,40077,Services,5027,Application: 12/01021/FUL,28/03/2013,87463,300.00,Revenue,Lancashire County Council,17758
Chorley Borough Council,http://statistics.data.gov.uk/id/local-authority/30UE,Development Control,1091,Planning,Consultants` Fees,40077,Services,5027,Application: 2012/00238/PREAPP,28/03/2013,87463,400.00,Revenue,Lancashire County Council,17758
Chorley Borough Council,http://statistics.data.gov.uk/id/local-authority/30UE,Corporate Management,1008,Health Environment & Neighbourhoods,Other Contributions,40145,Grants and Subscriptions,5031,Contribution to IDVA 2012/13,26/03/2013,87591,"1,630.00",Revenue,Lancashire County Council,17758
Chorley Borough Council,http://statistics.data.gov.uk/id/local-authority/30UE,Precepts and Collection Fund,Precepts,Shared Service Arrangement,LCC Precept,2009,Precepts & Collection Fund,Precept,Precept,27/03/2013,87701,"4,012,445.00",Revenue,Lancashire County Council,18386
Chorley Borough Council,http://statistics.data.gov.uk/id/local-authority/30UE,Unapportionable Central OHeads,1009,Shared Service Arrangement,Pensions Increase Act Payments,18005,Indirect Employee Expenses,5002,Pension Recharge,27/03/2013,87703,"19,051.44",Revenue,Lancashire County Council,18386
Chorley Borough Council,http://statistics.data.gov.uk/id/local-authority/30UE,Precepts and Collection Fund,Precepts,Shared Service Arrangement,LPA Precept,2010,Precepts & Collection Fund,Precept,Precept,27/03/2013,87702,"542,719.00",Revenue,Lancashire Police Authority,17438
Chorley Borough Council,http://statistics.data.gov.uk/id/local-authority/30UE,Democratic Represent and  Mgnt,1007,Health Environment & Neighbourhoods,Children's Activities,40188,Miscellaneous Expenses,5034,Delivery and hire costs for Trampoline and sports sessions - Jan to March,15/03/2013,87380,"1,075.00",Revenue,Lancashire TAAG,57169
Chorley Borough Council,http://statistics.data.gov.uk/id/local-authority/30UE,Corporate Management,1008,Streetscene & Leisure Contracts,Clinical Waste Collection,50007,Private Contractors,5042,Disposal of clincal waste from households in Chorley. Yellow bag collections ,13/03/2013,87169,976.03,Revenue,Lancashire Teaching Hospitals NHS FT,19003
Chorley Borough Council,http://statistics.data.gov.uk/id/local-authority/30UE,Waste Collection,1050,Streetscene & Leisure Contracts,Clinical Waste Collection,50007,Private Contractors,5042,Disposal of clincal waste from households in Chorley. Yellow bag collections ,28/03/2013,87629,919.60,Revenue,Lancashire Teaching Hospitals NHS FT,19003
Chorley Borough Council,http://statistics.data.gov.uk/id/local-authority/30UE,Precepts and Collection Fund,Precepts,Shared Service Arrangement,LCFA Precept,2011,Precepts & Collection Fund,Precept,Precept,27/03/2013,87704,"232,950.00",Revenue,Lancs Combined Fire Authority,17768
Chorley Borough Council,http://statistics.data.gov.uk/id/local-authority/30UE,Parking Services,1066,Streetscene & Leisure Contracts,External Contractors,50008,Private Contractors,5042,Enforcement and Cash Collection charges monthly ,06/03/2013,86790,"4,867.21",Revenue,Legion Group,21973
Chorley Borough Council,http://statistics.data.gov.uk/id/local-authority/30UE,Parking Services,1066,Streetscene & Leisure Contracts,External Contractors,50008,Private Contractors,5042,"Enforcement and Cash Collection charges monthly ",08/03/2013,87203,"4,481.21",Revenue,Legion Group,21973
Chorley Borough Council,http://statistics.data.gov.uk/id/local-authority/30UE,Unapportionable Central OHeads,1009,Governance,General Subscriptions,40146,Grants and Subscriptions,5031,Subscription to Lexis Nexis Chorley Council and South Ribble Council,21/03/2013,87314,"11,434.00",Revenue,Lexis Nexis UK,16688
Chorley Borough Council,http://statistics.data.gov.uk/id/local-authority/30UE,Unapportionable Central OHeads,1009,Governance,External Contractors,50008,Private Contractors,5042,Core and Reactive Service Charge,06/03/2013,87172,"41,633.47",Revenue,Liberata UK,20716
Chorley Borough Council,http://statistics.data.gov.uk/id/local-authority/30UE,Capital,Capital,Governance,Consultants Fees,3025,Capital Expenditure,Capital,Management Fee on Capital Projects,06/03/2013,87172,"5,125.05",Capital,Liberata UK,20716
Chorley Borough Council,http://statistics.data.gov.uk/id/local-authority/30UE,Unapportionable Central OHeads,1009,Governance,Asset Maintenance Fund,20012,Repairs Maintenance & Alts,5005,Pass through Work,26/03/2013,87242,"5,318.08",Revenue,Liberata UK,20716
Chorley Borough Council,http://statistics.data.gov.uk/id/local-authority/30UE,Central Support Services,1009,Governance,Asset Maintenance Fund,20012,Repairs Maintenance & Alts,5005,Improvement Works,26/03/2013,87244,"21,307.46",Revenue,Liberata UK,20716
Chorley Borough Council,http://statistics.data.gov.uk/id/local-authority/30UE,Unapportionable Central OHeads,1009,Governance,Asset Maintenance Fund,20012,Repairs Maintenance & Alts,5005,work in Progress,15/03/2013,87410,"7,808.25",Revenue,Liberata UK,20716
Chorley Borough Council,http://statistics.data.gov.uk/id/local-authority/30UE,Central Support Services,1009,Governance,Asset Maintenance Fund,20012,Repairs Maintenance & Alts,5005,Pass through work,28/03/2013,87667,763.00,Revenue,Liberata UK,20716
Chorley Borough Council,http://statistics.data.gov.uk/id/local-authority/30UE,Unapportionable Central OHeads,1009,Governance,Asset Maintenance Fund,20012,Repairs Maintenance & Alts,5005,Improvement Works,28/03/2013,87668,"32,054.25",Revenue,Liberata UK,20716
Chorley Borough Council,http://statistics.data.gov.uk/id/local-authority/30UE,Democratic Represent and  Mgnt,1007,Health Environment & Neighbourhoods,Children's Activities,40188,Miscellaneous Expenses,5034,Rock Climbing Wall for Winter Playday,08/03/2013,87259,500.00,Revenue,Lister Logic LTD,22431
Chorley Borough Council,http://statistics.data.gov.uk/id/local-authority/30UE,Unapportionable Central OHeads,1009,Policy & Performance,Exhibitions & Special Events,40158,Miscellaneous Expenses,5034,To provide a climbing wall on Saturday 15 December for the December activities in the town centre,06/03/2013,87260,500.00,Revenue,Lister Logic LTD,22431
Chorley Borough Council,http://statistics.data.gov.uk/id/local-authority/30UE,Community Development,1097,Governance,Grants To Other Organisations,40127,Grants and Subscriptions,5031,Community Grant Funding 2013,06/03/2013,87167,250.00,Revenue,Living Waters Church,21679
Chorley Borough Council,http://statistics.data.gov.uk/id/local-authority/30UE,Capital,Capital,Housing,Grants,3002,Capital Expenditure,Capital,Disable Facility Grant,08/03/2013,87197,"2,750.00",Capital,M.J Park Building Contractors,20367
Chorley Borough Council,http://statistics.data.gov.uk/id/local-authority/30UE,Homelessness,1075,HR & Org. Development,Agency Staff,13000,Direct Employee Expenses,5001,Peets Alexander PAYE Housing Options Officer SA58903 15.56,21/03/2013,87437,556.27,Revenue,Matrix SCM Ltd,22128
Chorley Borough Council,http://statistics.data.gov.uk/id/local-authority/30UE,Homelessness,1075,HR & Org. Development,Agency Staff,13000,Direct Employee Expenses,5001,Peets Alexander PAYE Housing Options Officer SA58903 15.56,21/03/2013,87438,571.83,Revenue,Matrix SCM Ltd,22128
Chorley Borough Council,http://statistics.data.gov.uk/id/local-authority/30UE,Homelessness,1075,HR & Org. Development,Agency Staff,13000,Direct Employee Expenses,5001,Peets Alexander PAYE Housing Options Officer SA58903 15.56,21/03/2013,87536,587.39,Revenue,Matrix SCM Ltd,22128
Chorley Borough Council,http://statistics.data.gov.uk/id/local-authority/30UE,Homelessness,1075,HR & Org. Development,Agency Staff,13000,Direct Employee Expenses,5001,Peets Alexander PAYE Housing Options Officer SA58903 15.56,28/03/2013,87714,571.83,Revenue,Matrix SCM Ltd,22128
Chorley Borough Council,http://statistics.data.gov.uk/id/local-authority/30UE,Democratic Represent and  Mgnt,1007,Streetscene & Leisure Contracts,Grounds Maintenance Contractor,20043,Grounds Maintenance Costs,5013,20 ton of 10mm to dust grit stone,21/03/2013,87523,364.32,Revenue,Mc & Ma Stewart (Haulage Ltd),16627
Chorley Borough Council,http://statistics.data.gov.uk/id/local-authority/30UE,Service Management & Support,1009,Streetscene & Leisure Contracts,Supplies-Grounds Maintenance,40025,"Equipment, Furniture & Materia",5023,CHORLEY PALS MEMORIAL REPAIRS AND CLEANING.,26/03/2013,87642,"1,450.00",Revenue,MJR Masonry Services,56017
Chorley Borough Council,http://statistics.data.gov.uk/id/local-authority/30UE,Service Management & Support,1009,Streetscene & Leisure Contracts,Supplies-Grounds Maintenance,40025,"Equipment, Furniture & Materia",5023,Summer bedding plants Diamond Jubilee planting.,26/03/2013,87588,660.00,Revenue,Moss Bank Nurseries,51030
Chorley Borough Council,http://statistics.data.gov.uk/id/local-authority/30UE,Capital,Capital,Economic Development,Other Capital Grants/Loans,3000,Capital Expenditure,Capital,Climate Change Grant,21/03/2013,87506,308.90,Capital,Mr Martin Horton,56396
Chorley Borough Council,http://statistics.data.gov.uk/id/local-authority/30UE,Corporate Management,1008,Streetscene & Leisure Contracts,Refunds,40220,Miscellaneous Expenses,5034,Pre-purchase grave no longer needed,13/03/2013,87405,843.00,Revenue,Mrs Sarah Ormrod,58657
Chorley Borough Council,http://statistics.data.gov.uk/id/local-authority/30UE,Corporate Management,1008,Health Environment & Neighbourhoods,Veterinary Fees Etc,40074,Services,5027,Worming and vaccinations for stray dogs going into rescues,13/03/2013,87336,388.24,Revenue,Myerscough Veterinary Group,56978
Chorley Borough Council,http://statistics.data.gov.uk/id/local-authority/30UE,Unapportionable Central OHeads,1009,Policy & Performance,Publicity - Advertising,40157,Miscellaneous Expenses,5034,What`s Happening Magazines 16PP 170 X 240MM + 4PP COVER,06/03/2013,87183,"3,240.00",Revenue,N B Colour Print Ltd,17917
Chorley Borough Council,http://statistics.data.gov.uk/id/local-authority/30UE,Housing Benefit Administration,1077,"Customer, ICT & Transactional",Printing,40043,"Printing, Stationery & General",5026,"10,000 2PP A4 Benefits Leaflets to be delivered to Bristol address",06/03/2013,87184,387.00,Revenue,N B Colour Print Ltd,17917
Chorley Borough Council,http://statistics.data.gov.uk/id/local-authority/30UE,Central Support Services,1009,Chief Executives Office,Tools & Equipment - Lease,40006,"Equipment, Furniture & Materia",5023,Quarterly Rental of Jet 250 Franking Machine and 2kg Scale Quarterly Rental of Jet 300 Franking Machine,28/03/2013,87675,"1,009.25",Revenue,Nationwide Capital Finance Ltd,21739
Chorley Borough Council,http://statistics.data.gov.uk/id/local-authority/30UE,Corporate Management,1008,Shared Service Arrangement,Bank Charges,40151,Miscellaneous Expenses,5034,Transcation Charges,27/03/2013,87707,291.52,Revenue,Natwest Streamline,16690
Chorley Borough Council,http://statistics.data.gov.uk/id/local-authority/30UE,Corporate Management,1008,Shared Service Arrangement,Bank Charges,40151,Miscellaneous Expenses,5034,Transaction Charges,27/03/2013,87708,430.66,Revenue,Natwest Streamline,16690
Chorley Borough Council,http://statistics.data.gov.uk/id/local-authority/30UE,Corporate Management,1008,Shared Service Arrangement,Bank Charges,40151,Miscellaneous Expenses,5034,Transaction Charges,27/03/2013,87708,11.79,Revenue,Natwest Streamline,16690
Chorley Borough Council,http://statistics.data.gov.uk/id/local-authority/30UE,Local Tax Collection,1010,Shared Service Arrangement,Legal Fees,40171,Miscellaneous Expenses,5034,14/2/2013 - HM Court Services - 229 liability orders,27/03/2013,87542,687.00,Revenue,Natwest-Business Card,16267
Chorley Borough Council,http://statistics.data.gov.uk/id/local-authority/30UE,Local Tax Collection,1010,Shared Service Arrangement,Legal Fees,40171,Miscellaneous Expenses,5034,30/1/2013 - HM Court Services - 270 liability orders,27/03/2013,87542,810.00,Revenue,Natwest-Business Card,16267
Chorley Borough Council,http://statistics.data.gov.uk/id/local-authority/30UE,Local Tax Collection,1010,Shared Service Arrangement,Legal Fees,40171,Miscellaneous Expenses,5034,13/2/2013 - HM Court Services - 36 liability orders,27/03/2013,87542,108.00,Revenue,Natwest-Business Card,16267
Chorley Borough Council,http://statistics.data.gov.uk/id/local-authority/30UE,Development Control,1091,Shared Service Arrangement,Staff Rail Fares,30032,Public Transport,5019,1/2/2013 - Trainline.com - Train Man - Birm LA Fenton,27/03/2013,87542,78.41,Revenue,Natwest-Business Card,16267
Chorley Borough Council,http://statistics.data.gov.uk/id/local-authority/30UE,Economic Development,1096,Shared Service Arrangement,Promotional Expenses,40159,Miscellaneous Expenses,5034,8/2/2013 - Mailchimp - Monthly charge MailChimp,27/03/2013,87542,9.69,Revenue,Natwest-Business Card,16267
Chorley Borough Council,http://statistics.data.gov.uk/id/local-authority/30UE,Unapportionable Central OHeads,1009,Shared Service Arrangement,Other Fees,40212,Miscellaneous Expenses,5034,15/1/2013 - Dreamstime.Com - Purchase of images from a photo library,27/03/2013,87700,276.15,Revenue,Natwest-Business Card,16267
Chorley Borough Council,http://statistics.data.gov.uk/id/local-authority/30UE,Central Support Services,1009,Shared Service Arrangement,Miscellaneous Expenses,40200,Miscellaneous Expenses,5034,15/1/2013 - Dartscorner.co.uk - Freestanding portable dartboard,27/03/2013,87700,125.82,Revenue,Natwest-Business Card,16267
Chorley Borough Council,http://statistics.data.gov.uk/id/local-authority/30UE,Central Support Services,1009,Shared Service Arrangement,HR Recruitment - Advertising,15300,Indirect Employee Expenses,5002,15/1/2013 - Reed Online Ltd - Advert,27/03/2013,87700,240.00,Revenue,Natwest-Business Card,16267
Chorley Borough Council,http://statistics.data.gov.uk/id/local-authority/30UE,Local Tax Collection,1010,Shared Service Arrangement,Legal Fees,40171,Miscellaneous Expenses,5034,17/1/2013 - HM Court Services - 10 liability orders,27/03/2013,87700,30.00,Revenue,Natwest-Business Card,16267
Chorley Borough Council,http://statistics.data.gov.uk/id/local-authority/30UE,Homelessness,1075,Shared Service Arrangement,Bed and Breakfast Accommodation,40232,Miscellaneous Expenses,5034,3/1/2013 - Premier Inn - NAME REDACTED 3-10/01/13,27/03/2013,87700,295.00,Revenue,Natwest-Business Card,16267
Chorley Borough Council,http://statistics.data.gov.uk/id/local-authority/30UE,Homelessness,1075,Shared Service Arrangement,Bed and Breakfast Accommodation,40232,Miscellaneous Expenses,5034,10/1/2013 - Premier Inn - NAME REDACTED 11-17/01/13,27/03/2013,87700,262.50,Revenue,Natwest-Business Card,16267
Chorley Borough Council,http://statistics.data.gov.uk/id/local-authority/30UE,Unapportionable Central OHeads,1009,Streetscene & Leisure Contracts,Refuse Collection,20037,Cleaning and Domestic Supplies,5012,Exchange,26/03/2013,87309,"1,493.26",Revenue,Neales Waste Management,17583
Chorley Borough Council,http://statistics.data.gov.uk/id/local-authority/30UE,Central Support Services,1009,Streetscene & Leisure Contracts,Refuse Collection,20037,Cleaning and Domestic Supplies,5012,Disposal,26/03/2013,87309,244.20,Revenue,Neales Waste Management,17583
Chorley Borough Council,http://statistics.data.gov.uk/id/local-authority/30UE,Service Management & Support,1009,Streetscene & Leisure Contracts,Refuse Collection,20037,Cleaning and Domestic Supplies,5012,Exchange of Street cleaning waste skip from 14/01/2013 for new contact until 31/03/2013,26/03/2013,87323,70.00,Revenue,Neales Waste Management,17583
Chorley Borough Council,http://statistics.data.gov.uk/id/local-authority/30UE,Service Management & Support,1009,Streetscene & Leisure Contracts,Refuse Collection,20037,Cleaning and Domestic Supplies,5012,Exchange of green waste skip for Chorley Council from 14/01/2013 until 31/03/2013,26/03/2013,87323,79.07,Revenue,Neales Waste Management,17583
Chorley Borough Council,http://statistics.data.gov.uk/id/local-authority/30UE,Service Management & Support,1009,Streetscene & Leisure Contracts,Refuse Collection,20037,Cleaning and Domestic Supplies,5012,Price per tonne of green waste removed from Chorley Council from 14/01/2013 to 31/03/2013,26/03/2013,87323,187.96,Revenue,Neales Waste Management,17583
Chorley Borough Council,http://statistics.data.gov.uk/id/local-authority/30UE,Corporate Management,1008,Policy & Performance,Publicity - Advertising,40157,Miscellaneous Expenses,5034,Half page advert for the Warm Homes Healthy People campaign in the Chorley Citizen,06/03/2013,87179,352.00,Revenue,Newsquest (Lancashire) Limited,18117
Chorley Borough Council,http://statistics.data.gov.uk/id/local-authority/30UE,Local Tax Collection,1010,"Customer, ICT & Transactional",Publications,40054,"Printing, Stationery & General",5026,Publication of Council Tax changes 2013 - 2014 in Chorley Citizen,21/03/2013,87472,578.00,Revenue,Newsquest (Lancashire) Limited,18117
Chorley Borough Council,http://statistics.data.gov.uk/id/local-authority/30UE,Corporate Management,1008,Streetscene & Leisure Contracts,Publicity - Advertising,40157,Miscellaneous Expenses,5034,"Full page advert in Chorley Citizen (Page 6), for Keep Warm and Well",21/03/2013,87473,352.00,Revenue,Newsquest (Lancashire) Limited,18117
Chorley Borough Council,http://statistics.data.gov.uk/id/local-authority/30UE,Capital,Capital,Streetscene & Leisure Contracts,Other Contractor,3012,Capital Expenditure,Capital,All Weather Pitch - Clayton Green Sports Centre.Remove and Replace Shock pad 3G carpet and play lines,15/03/2013,87182,"17,802.46",Capital,Nordon Ltd,21883
Chorley Borough Council,http://statistics.data.gov.uk/id/local-authority/30UE,Housing Benefit Administration,1077,"Customer, ICT & Transactional",Service Fees,40056,Services,5027,Standard Format,01/03/2013,86785,"3,150.00",Revenue,Northgate Information Solutions UK Limited,18285
Chorley Borough Council,http://statistics.data.gov.uk/id/local-authority/30UE,Housing Benefit Administration,1077,"Customer, ICT & Transactional",Service Fees,40056,Services,5027,Large Format,01/03/2013,86785,175.00,Revenue,Northgate Information Solutions UK Limited,18285
Chorley Borough Council,http://statistics.data.gov.uk/id/local-authority/30UE,Service Management & Support,1009,Streetscene & Leisure Contracts,Hire Of Transport,30028,Contrct Hire & Operating Lease,5018,Hire of Ford Transit tipper Reg NJ60KFK for Chorley council,13/03/2013,87214,387.12,Revenue,Northgate Vehicle Hire (NW) Ltd,17360
Chorley Borough Council,http://statistics.data.gov.uk/id/local-authority/30UE,Service Management & Support,1009,Streetscene & Leisure Contracts,Hire Of Transport,30028,Contrct Hire & Operating Lease,5018,Hire of Ford Transit pickup Reg NJ10OTK,13/03/2013,87214,368.00,Revenue,Northgate Vehicle Hire (NW) Ltd,17360
Chorley Borough Council,http://statistics.data.gov.uk/id/local-authority/30UE,Service Management & Support,1009,Streetscene & Leisure Contracts,Hire Of Transport,30028,Contrct Hire & Operating Lease,5018,Hire of Ford Transit pickup NJ10OVN,13/03/2013,87214,368.00,Revenue,Northgate Vehicle Hire (NW) Ltd,17360
Chorley Borough Council,http://statistics.data.gov.uk/id/local-authority/30UE,Service Management & Support,1009,Streetscene & Leisure Contracts,Hire Of Transport,30028,Contrct Hire & Operating Lease,5018,Hire of Ford Transit pickup NJ10OXG,13/03/2013,87214,368.00,Revenue,Northgate Vehicle Hire (NW) Ltd,17360
Chorley Borough Council,http://statistics.data.gov.uk/id/local-authority/30UE,Service Management & Support,1009,Streetscene & Leisure Contracts,Hire Of Transport,30028,Contrct Hire & Operating Lease,5018,Hire of Ford Transit pickup NJ10OXP,13/03/2013,87214,368.00,Revenue,Northgate Vehicle Hire (NW) Ltd,17360
Chorley Borough Council,http://statistics.data.gov.uk/id/local-authority/30UE,Service Management & Support,1009,Streetscene & Leisure Contracts,Hire Of Transport,30028,Contrct Hire & Operating Lease,5018,Hire of Ford Transit Crewcab Reg NL12OFG,13/03/2013,87214,472.00,Revenue,Northgate Vehicle Hire (NW) Ltd,17360
Chorley Borough Council,http://statistics.data.gov.uk/id/local-authority/30UE,Service Management & Support,1009,Streetscene & Leisure Contracts,Hire Of Transport,30028,Contrct Hire & Operating Lease,5018,Hire of Ford Transit Crewcab Reg NL12ONR,13/03/2013,87214,472.00,Revenue,Northgate Vehicle Hire (NW) Ltd,17360
Chorley Borough Council,http://statistics.data.gov.uk/id/local-authority/30UE,Service Management & Support,1009,Streetscene & Leisure Contracts,Hire Of Transport,30028,Contrct Hire & Operating Lease,5018,Hire of Peugeot Partner Van Reg NV60BVF,13/03/2013,87214,218.04,Revenue,Northgate Vehicle Hire (NW) Ltd,17360
Chorley Borough Council,http://statistics.data.gov.uk/id/local-authority/30UE,Corporate Management,1008,Streetscene & Leisure Contracts,Transport Operating Leases,30029,Contrct Hire & Operating Lease,5018,Hire of Peugeot Partner van after modification at price qouted,13/03/2013,87214,244.72,Revenue,Northgate Vehicle Hire (NW) Ltd,17360
Chorley Borough Council,http://statistics.data.gov.uk/id/local-authority/30UE,Service Management & Support,1009,Streetscene & Leisure Contracts,Hire Of Transport,30028,Contrct Hire & Operating Lease,5018,Hire of tipper,13/03/2013,87214,460.00,Revenue,Northgate Vehicle Hire (NW) Ltd,17360
Chorley Borough Council,http://statistics.data.gov.uk/id/local-authority/30UE,Service Management & Support,1009,Streetscene & Leisure Contracts,Hire Of Transport,30028,Contrct Hire & Operating Lease,5018,Hire of Ford Transit pickup Reg NJ10OTK,28/03/2013,87433,315.43,Revenue,Northgate Vehicle Hire (NW) Ltd,17360
Chorley Borough Council,http://statistics.data.gov.uk/id/local-authority/30UE,Service Management & Support,1009,Streetscene & Leisure Contracts,Hire Of Transport,30028,Contrct Hire & Operating Lease,5018,Hire of Ford Transit pickup NJ10OVN,28/03/2013,87433,407.43,Revenue,Northgate Vehicle Hire (NW) Ltd,17360
Chorley Borough Council,http://statistics.data.gov.uk/id/local-authority/30UE,Service Management & Support,1009,Streetscene & Leisure Contracts,Hire Of Transport,30028,Contrct Hire & Operating Lease,5018,Hire of Ford Transit pickup NJ10OXG,28/03/2013,87433,276.00,Revenue,Northgate Vehicle Hire (NW) Ltd,17360
Chorley Borough Council,http://statistics.data.gov.uk/id/local-authority/30UE,Service Management & Support,1009,Streetscene & Leisure Contracts,Hire Of Transport,30028,Contrct Hire & Operating Lease,5018,Hire of Ford Transit pickup NJ10OXP,28/03/2013,87433,407.43,Revenue,Northgate Vehicle Hire (NW) Ltd,17360
Chorley Borough Council,http://statistics.data.gov.uk/id/local-authority/30UE,Service Management & Support,1009,Streetscene & Leisure Contracts,Hire Of Transport,30028,Contrct Hire & Operating Lease,5018,Hire of Ford Transit Crewcab Reg NL12OFG,28/03/2013,87433,522.57,Revenue,Northgate Vehicle Hire (NW) Ltd,17360
Chorley Borough Council,http://statistics.data.gov.uk/id/local-authority/30UE,Service Management & Support,1009,Streetscene & Leisure Contracts,Hire Of Transport,30028,Contrct Hire & Operating Lease,5018,Hire of Ford Transit Crewcab Reg NL12ONR,28/03/2013,87433,522.57,Revenue,Northgate Vehicle Hire (NW) Ltd,17360
Chorley Borough Council,http://statistics.data.gov.uk/id/local-authority/30UE,Service Management & Support,1009,Streetscene & Leisure Contracts,Hire Of Transport,30028,Contrct Hire & Operating Lease,5018,Hire of Peugeot Partner Van Reg NV60BVF,28/03/2013,87433,241.40,Revenue,Northgate Vehicle Hire (NW) Ltd,17360
Chorley Borough Council,http://statistics.data.gov.uk/id/local-authority/30UE,Service Management & Support,1009,Streetscene & Leisure Contracts,Hire Of Transport,30028,Contrct Hire & Operating Lease,5018,Hire of Ford Transit tipper Reg NJ60KFK for Chorley council,28/03/2013,87433,428.60,Revenue,Northgate Vehicle Hire (NW) Ltd,17360
Chorley Borough Council,http://statistics.data.gov.uk/id/local-authority/30UE,Service Management & Support,1009,Streetscene & Leisure Contracts,Hire Of Transport,30028,Contrct Hire & Operating Lease,5018,Hire of Sprinter Crew,28/03/2013,87433,509.29,Revenue,Northgate Vehicle Hire (NW) Ltd,17360
Chorley Borough Council,http://statistics.data.gov.uk/id/local-authority/30UE,Service Management & Support,1009,Streetscene & Leisure Contracts,Hire Of Transport,30028,Contrct Hire & Operating Lease,5018,Hire of NJ10 OTK,28/03/2013,87433,92.00,Revenue,Northgate Vehicle Hire (NW) Ltd,17360
Chorley Borough Council,http://statistics.data.gov.uk/id/local-authority/30UE,Service Management & Support,1009,Streetscene & Leisure Contracts,Hire Of Transport,30028,Contrct Hire & Operating Lease,5018,Hire of NJ10 OXG,28/03/2013,87433,131.43,Revenue,Northgate Vehicle Hire (NW) Ltd,17360
Chorley Borough Council,http://statistics.data.gov.uk/id/local-authority/30UE,Service Management & Support,1009,Streetscene & Leisure Contracts,Hire Of Transport,30028,Contrct Hire & Operating Lease,5018,Fuel for ND12 TLK,28/03/2013,87433,59.20,Revenue,Northgate Vehicle Hire (NW) Ltd,17360
Chorley Borough Council,http://statistics.data.gov.uk/id/local-authority/30UE,Service Management & Support,1009,Streetscene & Leisure Contracts,Hire Of Transport,30028,Contrct Hire & Operating Lease,5018,Hire of NX62 UCS,28/03/2013,87433,270.94,Revenue,Northgate Vehicle Hire (NW) Ltd,17360
Chorley Borough Council,http://statistics.data.gov.uk/id/local-authority/30UE,Homelessness,1075,Housing,Training Course Fees,17010,Indirect Employee Expenses,5002,Now Medical training for Housing Options staff 13 February 2013,06/03/2013,87117,"1,850.00",Revenue,NowMedical,18840
Chorley Borough Council,http://statistics.data.gov.uk/id/local-authority/30UE,Parking Services,1066,Chief Executives Office,Electricity,20013,Energy Costs,5006,Un-Metered CarPark Lighting,15/03/2013,87360,807.13,Revenue,Npower Commercial Gas,16814
Chorley Borough Council,http://statistics.data.gov.uk/id/local-authority/30UE,Parking Services,1066,Chief Executives Office,Electricity,20013,Energy Costs,5006,Un-metered Pay and Display Machines,15/03/2013,87360,87.64,Revenue,Npower Commercial Gas,16814
Chorley Borough Council,http://statistics.data.gov.uk/id/local-authority/30UE,Culture & Heritage,1036,Chief Executives Office,Electricity,20013,Energy Costs,5006,Un-metered CCTV Cameras,15/03/2013,87360,216.03,Revenue,Npower Commercial Gas,16814
Chorley Borough Council,http://statistics.data.gov.uk/id/local-authority/30UE,Democratic Represent and  Mgnt,1007,Chief Executives Office,Electricity,20013,Energy Costs,5006,Clayton Brook Community Centre,15/03/2013,87398,201.09,Revenue,Npower Commercial Gas,16814
Chorley Borough Council,http://statistics.data.gov.uk/id/local-authority/30UE,Democratic Represent and  Mgnt,1007,Chief Executives Office,Electricity,20013,Energy Costs,5006,Tatton Recreation Grounds,15/03/2013,87398,554.66,Revenue,Npower Commercial Gas,16814
Chorley Borough Council,http://statistics.data.gov.uk/id/local-authority/30UE,Culture & Heritage,1036,Chief Executives Office,Electricity,20013,Energy Costs,5006,Astley Hall,15/03/2013,87398,283.28,Revenue,Npower Commercial Gas,16814
Chorley Borough Council,http://statistics.data.gov.uk/id/local-authority/30UE,Democratic Represent and  Mgnt,1007,Chief Executives Office,Electricity,20013,Energy Costs,5006,Yarrow Valley Country Park,15/03/2013,87398,263.90,Revenue,Npower Commercial Gas,16814
Chorley Borough Council,http://statistics.data.gov.uk/id/local-authority/30UE,Democratic Represent and  Mgnt,1007,Chief Executives Office,Electricity,20013,Energy Costs,5006,Eaves green Community Centre,15/03/2013,87398,301.45,Revenue,Npower Commercial Gas,16814
Chorley Borough Council,http://statistics.data.gov.uk/id/local-authority/30UE,Corporate Management,1008,Chief Executives Office,Electricity,20013,Energy Costs,5006,Public Conveniences,15/03/2013,87398,95.85,Revenue,Npower Commercial Gas,16814
Chorley Borough Council,http://statistics.data.gov.uk/id/local-authority/30UE,Community Development,1097,Chief Executives Office,Electricity,20013,Energy Costs,5006,First Floor Information & Advice Centre,15/03/2013,87398,253.83,Revenue,Npower Commercial Gas,16814
Chorley Borough Council,http://statistics.data.gov.uk/id/local-authority/30UE,Community Development,1097,Chief Executives Office,Electricity,20013,Energy Costs,5006,Ground Floor Information & Advice Centre,15/03/2013,87398,344.68,Revenue,Npower Commercial Gas,16814
Chorley Borough Council,http://statistics.data.gov.uk/id/local-authority/30UE,Democratic Represent and  Mgnt,1007,Chief Executives Office,Electricity,20013,Energy Costs,5006,Astley Village Community Centre,15/03/2013,87398,224.42,Revenue,Npower Commercial Gas,16814
Chorley Borough Council,http://statistics.data.gov.uk/id/local-authority/30UE,Democratic Represent and  Mgnt,1007,Chief Executives Office,Electricity,20013,Energy Costs,5006,Astley Hall Coach House,15/03/2013,87398,"1,980.31",Revenue,Npower Commercial Gas,16814
Chorley Borough Council,http://statistics.data.gov.uk/id/local-authority/30UE,Democratic Represent and  Mgnt,1007,Chief Executives Office,Electricity,20013,Energy Costs,5006,Astley Park Changing Rooms,15/03/2013,87398,"1,588.66",Revenue,Npower Commercial Gas,16814
Chorley Borough Council,http://statistics.data.gov.uk/id/local-authority/30UE,Unapportionable Central OHeads,1009,Chief Executives Office,Electricity,20013,Energy Costs,5006,Civic Offices,15/03/2013,87398,"2,767.24",Revenue,Npower Commercial Gas,16814
Chorley Borough Council,http://statistics.data.gov.uk/id/local-authority/30UE,Central Support Services,1009,Chief Executives Office,Electricity,20013,Energy Costs,5006,Bengal Street,15/03/2013,87398,"1,126.28",Revenue,Npower Commercial Gas,16814
Chorley Borough Council,http://statistics.data.gov.uk/id/local-authority/30UE,Unapportionable Central OHeads,1009,Chief Executives Office,Electricity,20013,Energy Costs,5006,Town Hall,15/03/2013,87398,"1,982.11",Revenue,Npower Commercial Gas,16814
Chorley Borough Council,http://statistics.data.gov.uk/id/local-authority/30UE,Homelessness,1075,Chief Executives Office,Electricity,20013,Energy Costs,5006,Cotswold House Communal Rooms,15/03/2013,87398,"1,391.20",Revenue,Npower Commercial Gas,16814
Chorley Borough Council,http://statistics.data.gov.uk/id/local-authority/30UE,Homelessness,1075,Chief Executives Office,Electricity,20013,Energy Costs,5006,Cotswold House Two Storey Wing,15/03/2013,87398,576.05,Revenue,Npower Commercial Gas,16814
Chorley Borough Council,http://statistics.data.gov.uk/id/local-authority/30UE,Unapportionable Central OHeads,1009,HR & Org. Development,Corp Training Organisational Development,17006,Indirect Employee Expenses,5002,Stage 1: 1 - 1 Stage 2: Team Development Day with Senior Team Facilitation of Team Development Day,21/03/2013,87534,"3,000.00",Revenue,Nwlaeo,17571
Chorley Borough Council,http://statistics.data.gov.uk/id/local-authority/30UE,Central Support Services,1009,HR & Org. Development,Corp Training Organisational Development,17006,Indirect Employee Expenses,5002,Fees for Coaching Sessions to be held on 11/12 February 2013 and 27 February 2013,21/03/2013,87535,"1,900.00",Revenue,Nwlaeo,17571
Chorley Borough Council,http://statistics.data.gov.uk/id/local-authority/30UE,Unapportionable Central OHeads,1009,Chief Executives Office,Mobile Phones,40086,Communication and Computing,5028,Orange mobile phone charges for February 2013 - bill dated 3 March 2013 - Invoice Number 00919562300,28/03/2013,87554,"1,206.58",Revenue,Orange Pcs Ltd - Airtime,16486
Chorley Borough Council,http://statistics.data.gov.uk/id/local-authority/30UE,Central Support Services,1009,Chief Executives Office,Mobile Phones,40086,Communication and Computing,5028,Orange mobile phone charges for February 2013 - bill dated 3 March 2013 - Invoice Number 00919562300,28/03/2013,87554,75.53,Revenue,Orange Pcs Ltd - Airtime,16486
Chorley Borough Council,http://statistics.data.gov.uk/id/local-authority/30UE,Planning Policy,1092,Planning,Consultants` Fees,40077,Services,5027,Central Lancashire CIL - Stage 3 support to Examination of CIL 27 days @ 650 per day plus expenses,26/03/2013,87578,"3,413.50",Revenue,Peter Brett Associates LLp,48733
Chorley Borough Council,http://statistics.data.gov.uk/id/local-authority/30UE,Community Safety Crime Reduct,1043,Health Environment & Neighbourhoods,External Contractor,40198,Miscellaneous Expenses,5034,Provision of Pest control services for 2012/13,08/03/2013,87261,311.75,Revenue,Peter L Johnson,16727
Chorley Borough Council,http://statistics.data.gov.uk/id/local-authority/30UE,Corporate Management,1008,Health Environment & Neighbourhoods,External Contractor,40198,Miscellaneous Expenses,5034,Provision of Pest control services for 2012/13,15/03/2013,87369,311.75,Revenue,Peter L Johnson,16727
Chorley Borough Council,http://statistics.data.gov.uk/id/local-authority/30UE,Corporate Management,1008,Health Environment & Neighbourhoods,External Contractor,40198,Miscellaneous Expenses,5034,Provision of Pest control services for 2012/13,26/03/2013,87590,311.75,Revenue,Peter L Johnson,16727
Chorley Borough Council,http://statistics.data.gov.uk/id/local-authority/30UE,Corporate Management,1008,Health Environment & Neighbourhoods,External Contractor,40198,Miscellaneous Expenses,5034,Provision of Pest control services for 2012/13,26/03/2013,87673,311.75,Revenue,Peter L Johnson,16727
Chorley Borough Council,http://statistics.data.gov.uk/id/local-authority/30UE,Economic Development,1096,Economic Development,Publicity - Advertising,40157,Miscellaneous Expenses,5034,Cookery Demonstration on 27th November,08/03/2013,87247,625.00,Revenue,Philippa James,56871
Chorley Borough Council,http://statistics.data.gov.uk/id/local-authority/30UE,Culture & Heritage,1036,Health Environment & Neighbourhoods,Other Contributions,40145,Grants and Subscriptions,5031,2012/13 Contribution to 27no. PCSO`s deployed in Chorley Borough area.,28/03/2013,87308,"74,250.00",Revenue,Police & Crime Commissioner,17548
Chorley Borough Council,http://statistics.data.gov.uk/id/local-authority/30UE,Community Safety Crime Reduct,1043,Health Environment & Neighbourhoods,Tools & Equipment - Purchase,40003,"Equipment, Furniture & Materia",5023,Quote reference 1419/1 for dog control signs (120 toal metal signs and banding for parks and open spaces),08/03/2013,87246,980.85,Revenue,Poppy Signs Ltd,21898
Chorley Borough Council,http://statistics.data.gov.uk/id/local-authority/30UE,Corporate Management,1008,Health Environment & Neighbourhoods,Tools & Equipment - Purchase,40003,"Equipment, Furniture & Materia",5023,"2x banding tools, 3x100ft stainless steel 3/4`` banding, 2x 3/4`` buckles and 3x universal channel clips",28/03/2013,87275,"6,946.08",Revenue,Poppy Signs Ltd,21898
Chorley Borough Council,http://statistics.data.gov.uk/id/local-authority/30UE,Central Support Services,1009,Policy & Performance,Promotional Expenses,40159,Miscellaneous Expenses,5034,Signage for the front of the Union Street Building,21/03/2013,87533,"1,620.26",Revenue,Poppy Signs Ltd,21898
Chorley Borough Council,http://statistics.data.gov.uk/id/local-authority/30UE,Service Management & Support,1009,Streetscene & Leisure Contracts,Vehicle Excise Duty,30012,Direct Transport Costs,5016,Raod Rax for MX06 UKJ,26/03/2013,87653,135.00,Revenue,Post Office Counters Ltd,16191
Chorley Borough Council,http://statistics.data.gov.uk/id/local-authority/30UE,Service Management & Support,1009,Streetscene & Leisure Contracts,Vehicle Excise Duty,30012,Direct Transport Costs,5016,Road Tax for AE55 HKK,26/03/2013,87653,165.00,Revenue,Post Office Counters Ltd,16191
Chorley Borough Council,http://statistics.data.gov.uk/id/local-authority/30UE,Community Safety Crime Reduct,1043,Streetscene & Leisure Contracts,Vehicle Excise Duty,30012,Direct Transport Costs,5016,Road Tac for PO52 XVV,26/03/2013,87653,170.00,Revenue,Post Office Counters Ltd,16191
Chorley Borough Council,http://statistics.data.gov.uk/id/local-authority/30UE,Central Support Services,1009,HR & Org. Development,Corp Training Organisational Development,17006,Indirect Employee Expenses,5002,Aspiring Manager Programme (First 2 Modules) ,06/03/2013,87105,990.00,Revenue,Potential Unearthed,22243
Chorley Borough Council,http://statistics.data.gov.uk/id/local-authority/30UE,Unapportionable Central OHeads,1009,Chief Executives Office,Photocopier Consumables,40049,"Printing, Stationery & General",5026,Essential Printers Board A4 230 mic box 1000,13/03/2013,87296,50.52,Revenue,Premier Paper Group,54451
Chorley Borough Council,http://statistics.data.gov.uk/id/local-authority/30UE,Central Support Services,1009,Chief Executives Office,Photocopier Consumables,40049,"Printing, Stationery & General",5026,"Evolution Everyday A4 80gsm, Box 2500",13/03/2013,87296,461.00,Revenue,Premier Paper Group,54451
Chorley Borough Council,http://statistics.data.gov.uk/id/local-authority/30UE,Unapportionable Central OHeads,1009,Chief Executives Office,Photocopier Consumables,40049,"Printing, Stationery & General",5026,Papago Pastel Blue A4 80gsm Box 2500,13/03/2013,87296,52.70,Revenue,Premier Paper Group,54451
Chorley Borough Council,http://statistics.data.gov.uk/id/local-authority/30UE,Central Support Services,1009,Chief Executives Office,Photocopier Consumables,40049,"Printing, Stationery & General",5026,Papagp Pastel Green A4 80gsm Box 2500,13/03/2013,87296,52.70,Revenue,Premier Paper Group,54451
Chorley Borough Council,http://statistics.data.gov.uk/id/local-authority/30UE,Unapportionable Central OHeads,1009,Chief Executives Office,Photocopier Consumables,40049,"Printing, Stationery & General",5026,"Evolution Everyday A4 80gsm, Box 2500",28/03/2013,87572,461.00,Revenue,Premier Paper Group,54451
Chorley Borough Council,http://statistics.data.gov.uk/id/local-authority/30UE,Corporate Management,1008,Streetscene & Leisure Contracts,External Contractor,40198,Miscellaneous Expenses,5034,"Warm Homes Checks @ 50 per visit, for Warm Homes Healthy People Project.  ",01/03/2013,87155,950.00,Revenue,Preston Care and Repair,50018
Chorley Borough Council,http://statistics.data.gov.uk/id/local-authority/30UE,Corporate Management,1008,Streetscene & Leisure Contracts,External Contractor,40198,Miscellaneous Expenses,5034,"`Warm Homes check` - materials for draught proofing, maintenance etc",21/03/2013,87496,640.03,Revenue,Preston Care and Repair,50018
Chorley Borough Council,http://statistics.data.gov.uk/id/local-authority/30UE,Housing Advice,1071,Streetscene & Leisure Contracts,External Contractor,40198,Miscellaneous Expenses,5034,Boiler service/maintenance checks @ 100 per service - for the Warm Homes Healthy People project,21/03/2013,87497,700.00,Revenue,Preston Care and Repair,50018
Chorley Borough Council,http://statistics.data.gov.uk/id/local-authority/30UE,Corporate Management,1008,Streetscene & Leisure Contracts,External Contractor,40198,Miscellaneous Expenses,5034,Boiler service/maintenance checks @ 100 per service - for the Warm Homes Healthy People project,21/03/2013,87503,500.00,Revenue,Preston Care and Repair,50018
Chorley Borough Council,http://statistics.data.gov.uk/id/local-authority/30UE,Housing Advice,1071,Streetscene & Leisure Contracts,External Contractor,40198,Miscellaneous Expenses,5034,"Warm Homes checks @ 50 per visit, under Warm Homes Healthy People project",21/03/2013,87504,950.00,Revenue,Preston Care and Repair,50018
Chorley Borough Council,http://statistics.data.gov.uk/id/local-authority/30UE,Elections,1012,Governance,Postages,40082,Communication and Computing,5028,postage for final PI refresh 1051 Reminders,26/03/2013,87569,320.56,Revenue,Print Image Facilities LLP,57870
Chorley Borough Council,http://statistics.data.gov.uk/id/local-authority/30UE,Planning Policy,1092,Planning,Professional Fees,40063,Services,5027,Local Development Framework Programme Officer from December 2012 to adoption 2013,13/03/2013,87009,"1,945.00",Revenue,Programme Officer Services Ltd,57093
Chorley Borough Council,http://statistics.data.gov.uk/id/local-authority/30UE,Democratic Represent and  Mgnt,1007,Streetscene & Leisure Contracts,Playground Equipment,40008,"Equipment, Furniture & Materia",5023,Duck Springer (J837) for The Willows Play Area.  Delivery to Bengal Street Depot on 8th March,15/03/2013,87434,496.00,Revenue,Proludic Ltd,22087
Chorley Borough Council,http://statistics.data.gov.uk/id/local-authority/30UE,Capital,Capital,Streetscene & Leisure Contracts,Main Contractor,3007,Capital Expenditure,Capital,Play equipment for The Willows Eaves Green ,15/03/2013,87435,"6,271.00",Capital,Proludic Ltd,22087
Chorley Borough Council,http://statistics.data.gov.uk/id/local-authority/30UE,Service Management & Support,1009,Streetscene & Leisure Contracts,Refuse Collection,20037,Cleaning and Domestic Supplies,5012,Disposal of groundsmaintenance green waste from projects to include tonnage and tax,26/03/2013,87297,454.40,Revenue,Quercia Ltd,19049
Chorley Borough Council,http://statistics.data.gov.uk/id/local-authority/30UE,Economic Development,1096,Economic Development,Grants To Other Organisations,40127,Grants and Subscriptions,5031,Starting in business grant - Capital Expenditure,21/03/2013,87505,324.27,Revenue,NAME REDACTED,58661
Chorley Borough Council,http://statistics.data.gov.uk/id/local-authority/30UE,Service Management & Support,1009,Streetscene & Leisure Contracts,Supplies-Grounds Maintenance,40025,"Equipment, Furniture & Materia",5023,Supply pitch marking solution to be collected by Chorley Council,22/03/2013,87298,400.00,Revenue,Rigby Taylor Ltd,16299
Chorley Borough Council,http://statistics.data.gov.uk/id/local-authority/30UE,Service Management & Support,1009,Streetscene & Leisure Contracts,Supplies-Grounds Maintenance,40025,"Equipment, Furniture & Materia",5023,Supply 170 railway sleepers ,22/03/2013,87321,"2,167.50",Revenue,Rigby Taylor Ltd,16299
Chorley Borough Council,http://statistics.data.gov.uk/id/local-authority/30UE,Service Management & Support,1009,Streetscene & Leisure Contracts,Supplies-Grounds Maintenance,40025,"Equipment, Furniture & Materia",5023,Wild flower seed - Rainbow mix - 1 Kilo,15/03/2013,87322,195.00,Revenue,Rigby Taylor Ltd,16299
Chorley Borough Council,http://statistics.data.gov.uk/id/local-authority/30UE,Service Management & Support,1009,Streetscene & Leisure Contracts,Supplies-Grounds Maintenance,40025,"Equipment, Furniture & Materia",5023,2 Knapsack sprayers,15/03/2013,87322,210.00,Revenue,Rigby Taylor Ltd,16299
Chorley Borough Council,http://statistics.data.gov.uk/id/local-authority/30UE,Service Management & Support,1009,Streetscene & Leisure Contracts,Supplies-Grounds Maintenance,40025,"Equipment, Furniture & Materia",5023,Trustee Amenity chemical - 20 - 5 litre tubs,15/03/2013,87322,530.00,Revenue,Rigby Taylor Ltd,16299
Chorley Borough Council,http://statistics.data.gov.uk/id/local-authority/30UE,Service Management & Support,1009,Streetscene & Leisure Contracts,Supplies-Grounds Maintenance,40025,"Equipment, Furniture & Materia",5023,Supply bags of lawn sand to be collected for fine turf area`s,22/03/2013,87366,810.00,Revenue,Rigby Taylor Ltd,16299
Chorley Borough Council,http://statistics.data.gov.uk/id/local-authority/30UE,Development Control,1091,Governance,Legal Fees,40171,Miscellaneous Expenses,5034,Process Server Invoice Service of documents on Preston County Court Re: Heath Paddock ,28/03/2013,87461,"1,080.00",Revenue,Rossendales High Court,52535
Chorley Borough Council,http://statistics.data.gov.uk/id/local-authority/30UE,Elections,1012,Governance,Postages,40082,Communication and Computing,5028,Business reply RRHA-KZCB-CAXA April 2012 - March 2013,21/03/2013,87462,837.41,Revenue,Royal Mail Group Plc,17522
Chorley Borough Council,http://statistics.data.gov.uk/id/local-authority/30UE,Democratic Represent and  Mgnt,1007,Streetscene & Leisure Contracts,Arts Development Initiatives,40187,Miscellaneous Expenses,5034,Funding for Big Drum Day - Event Date: 4th August 2013,13/03/2013,87305,"2,727.00",Revenue,Sambafriq,21441
Chorley Borough Council,http://statistics.data.gov.uk/id/local-authority/30UE,Economic Development,1096,Economic Development,Grants To Other Organisations,40127,Grants and Subscriptions,5031,shop front improvement,15/03/2013,87436,434.77,Revenue,Sandra Mulligan t/a Knitty Nora,58153
Chorley Borough Council,http://statistics.data.gov.uk/id/local-authority/30UE,Economic Development,1096,Economic Development,Grants To Other Organisations,40127,Grants and Subscriptions,5031,Shop Front Grant,15/03/2013,87269,318.75,Revenue,Sara Wareing,58145
Chorley Borough Council,http://statistics.data.gov.uk/id/local-authority/30UE,Economic Development,1096,Economic Development,Grants To Other Organisations,40127,Grants and Subscriptions,5031,Shop Floor Refurbishment,15/03/2013,87269,"3,000.00",Revenue,Sara Wareing,58145
Chorley Borough Council,http://statistics.data.gov.uk/id/local-authority/30UE,Service Management & Support,1009,Streetscene & Leisure Contracts,Tools & Equipment - Maintenance,40005,"Equipment, Furniture & Materia",5023,Carryout major repairs to Pole saw as required new pot and piston and other parts fitted,08/03/2013,87227,332.79,Revenue,Seddons (Plant and Engineers) ltd,47834
Chorley Borough Council,http://statistics.data.gov.uk/id/local-authority/30UE,Economic Development,1096,Economic Development,Grants To Other Organisations,40127,Grants and Subscriptions,5031,Starting in business grant - Capital Expenditure,15/03/2013,87354,"1,000.00",Revenue,Serenity Care (UK) Ltd,58654
Chorley Borough Council,http://statistics.data.gov.uk/id/local-authority/30UE,Elections,1012,Governance,Stationery,40050,"Printing, Stationery & General",5026,GUIDANCE TO VOTERS,01/03/2013,87141,141.75,Revenue,Shaw & Sons Ltd,18092
Chorley Borough Council,http://statistics.data.gov.uk/id/local-authority/30UE,Elections,1012,Governance,Stationery,40050,"Printing, Stationery & General",5026,VOTING COMPARTMENT NOTICE,01/03/2013,87141,147.00,Revenue,Shaw & Sons Ltd,18092
Chorley Borough Council,http://statistics.data.gov.uk/id/local-authority/30UE,Elections,1012,Governance,Tools & Equipment - Purchase,40003,"Equipment, Furniture & Materia",5023,BALLOT BOX SEALS,01/03/2013,87141,59.70,Revenue,Shaw & Sons Ltd,18092
Chorley Borough Council,http://statistics.data.gov.uk/id/local-authority/30UE,Elections,1012,Governance,Stationery,40050,"Printing, Stationery & General",5026,Presiding Officer Sundries Packs,21/03/2013,87532,"1,157.40",Revenue,Shaw & Sons Ltd,18092
Chorley Borough Council,http://statistics.data.gov.uk/id/local-authority/30UE,Unapportionable Central OHeads,1009,"Customer, ICT & Transactional",Consultants` Fees,40077,Services,5027,ICT consultancy work - Feb (20 days) To be paid on daily basis Jan 13-Mar 13 at top of SO1 scale,01/03/2013,87161,"1,914.82",Revenue,Simon Daniel Booth,57624
Chorley Borough Council,http://statistics.data.gov.uk/id/local-authority/30UE,Economic Development,1096,Economic Development,Grants To Other Organisations,40127,Grants and Subscriptions,5031,Business Rate subsidy 2nd tranche,15/03/2013,87266,"1,421.98",Revenue,Skewers Chorley,56621
Chorley Borough Council,http://statistics.data.gov.uk/id/local-authority/30UE,Control Accounts,Control,Shared Service Arrangement,Manual Control Account,1,Balance Sheet,Balance,test new bank,20/03/2013,87439,"10,000.00",Revenue,South Ribble Borough Council,17889
Chorley Borough Council,http://statistics.data.gov.uk/id/local-authority/30UE,Central Support Services,1009,Shared Service Arrangement,Service Fees to other Local Authorities,40076,Services,5027,Shared Assurance Costs 12/13,28/03/2013,87627,"92,000.00",Revenue,South Ribble Borough Council,17889
Chorley Borough Council,http://statistics.data.gov.uk/id/local-authority/30UE,Central Support Services,1009,Shared Service Arrangement,IT Software - Annual Licences,40101,Communication and Computing,5028,"Civica Authority Financials - licence, support and maintenance for the period 01/04/2012 to 31/03/2013",26/03/2013,87628,"13,872.75",Revenue,South Ribble Borough Council,17889
Chorley Borough Council,http://statistics.data.gov.uk/id/local-authority/30UE,Central Support Services,1009,Shared Service Arrangement,Service Fees,40056,Services,5027,Annual subscription to LG Futures (2012/13),26/03/2013,87628,"1,250.00",Revenue,South Ribble Borough Council,17889
Chorley Borough Council,http://statistics.data.gov.uk/id/local-authority/30UE,Democratic Represent and  Mgnt,1007,Health Environment & Neighbourhoods,Sports Development Initiatives,40186,Miscellaneous Expenses,5034,To provide grassroots schools and community coaching programme and supply equipment to young people. ,28/03/2013,87669,975.00,Revenue,Squash Events,58663
Chorley Borough Council,http://statistics.data.gov.uk/id/local-authority/30UE,Service Management & Support,1009,Streetscene & Leisure Contracts,External Contractor,40198,Miscellaneous Expenses,5034,CULVERT IMPROVEMENT,21/03/2013,87158,"3,660.00",Revenue,Stafford Estates LTD,22541
Chorley Borough Council,http://statistics.data.gov.uk/id/local-authority/30UE,Service Management & Support,1009,Streetscene & Leisure Contracts,External Contractor,40198,Miscellaneous Expenses,5034,Excavate culvert at Fox Cote play area to investigate culvert issue,01/03/2013,87159,160.00,Revenue,Stafford Estates LTD,22541
Chorley Borough Council,http://statistics.data.gov.uk/id/local-authority/30UE,Service Management & Support,1009,Streetscene & Leisure Contracts,External Contractor,40198,Miscellaneous Expenses,5034,Carryout work at Yarrow depot scrap sight and lay and roll road plannings from Oxford St Adlington,01/03/2013,87159,"1,086.00",Revenue,Stafford Estates LTD,22541
Chorley Borough Council,http://statistics.data.gov.uk/id/local-authority/30UE,Service Management & Support,1009,Streetscene & Leisure Contracts,External Contractor,40198,Miscellaneous Expenses,5034,Carryout works at Yarrow depot to create area for loasding bays. Remove damaged existing bays ,01/03/2013,87159,"2,350.00",Revenue,Stafford Estates LTD,22541
Chorley Borough Council,http://statistics.data.gov.uk/id/local-authority/30UE,Community Development,1097,Health Environment & Neighbourhoods,Miscellaneous Expenses,40200,Miscellaneous Expenses,5034,"scrape off, level and lay  10mm limestone and place tarmaced diassables access to gateway in alley ",26/03/2013,87425,"1,350.00",Revenue,Stafford Estates LTD,22541
Chorley Borough Council,http://statistics.data.gov.uk/id/local-authority/30UE,Central Support Services,1009,Governance,Mayoral Hospitality,40123,Expenses,5030,50% deposit for entertainment at the Mayor`s Charity Ball taking place at The Pines Hotel on 29th June 2013,12/02/2013,86682,"1,400.00",Revenue,Stephen Bayliss Limited,57867
Chorley Borough Council,http://statistics.data.gov.uk/id/local-authority/30UE,Central Support Services,1009,Governance,Mayoral Hospitality,40123,Expenses,5030,Deposit for entertainment at Silver Sparkle Ball on 29th June 2013,13/03/2013,87306,700.00,Revenue,Stephen Bayliss Limited,57867
Chorley Borough Council,http://statistics.data.gov.uk/id/local-authority/30UE,Economic Development,1096,Economic Development,Grants To Other Organisations,40127,Grants and Subscriptions,5031,Starting in Business Grant - Capital Expenditure,08/03/2013,87235,980.00,Revenue,NAME REDACTED,58536
Chorley Borough Council,http://statistics.data.gov.uk/id/local-authority/30UE,Capital,Capital,Housing,Grants,3002,Capital Expenditure,Capital,Capital Works - Disable Facility Grnat,01/03/2013,87076,"1,965.00",Capital,Stringfellow Bldg Cntrctrs Ltd,17893
Chorley Borough Council,http://statistics.data.gov.uk/id/local-authority/30UE,Capital,Capital,Governance,Main Contractor,3007,Capital Expenditure,Capital,"Work to Civic Offices, Union Street.",06/03/2013,87216,"21,261.90",Capital,Stringfellow Bldg Cntrctrs Ltd,17893
Chorley Borough Council,http://statistics.data.gov.uk/id/local-authority/30UE,Capital,Capital,Housing,Grants,3002,Capital Expenditure,Capital,DFG 58 Black Croft,21/03/2013,87442,"4,831.00",Capital,Stringfellow Bldg Cntrctrs Ltd,17893
Chorley Borough Council,http://statistics.data.gov.uk/id/local-authority/30UE,Capital,Capital,Governance,Main Contractor,3007,Capital Expenditure,Capital,Supply and fit shelve uprights,21/03/2013,87464,210.00,Capital,Stringfellow Bldg Cntrctrs Ltd,17893
Chorley Borough Council,http://statistics.data.gov.uk/id/local-authority/30UE,Capital,Capital,Governance,Main Contractor,3007,Capital Expenditure,Capital,To supply and fit heavy duty racking shelves,21/03/2013,87464,450.00,Capital,Stringfellow Bldg Cntrctrs Ltd,17893
Chorley Borough Council,http://statistics.data.gov.uk/id/local-authority/30UE,Capital,Capital,Housing,Staying-Put Grant,3003,Capital Expenditure,Capital,Disable Facility Grant,26/03/2013,87546,"3,600.00",Capital,Stringfellow Bldg Cntrctrs Ltd,17893
Chorley Borough Council,http://statistics.data.gov.uk/id/local-authority/30UE,Development Control,1091,Planning,Publications,40054,"Printing, Stationery & General",5026,JOURNAL OF PLANNING & ENVIRONMENTAL LAW and BINDERS SVC 0307-48BI,01/03/2013,87144,561.00,Revenue,Sweet & Maxwell Limited,17932
Chorley Borough Council,http://statistics.data.gov.uk/id/local-authority/30UE,Development Control,1091,Planning,Publications,40054,"Printing, Stationery & General",5026,JOURNAL OF PLANNING & ENVIRONMENTAL LAW and BINDERS SVC 0307-48BI,01/03/2013,87144,41.00,Revenue,Sweet & Maxwell Limited,17932
Chorley Borough Council,http://statistics.data.gov.uk/id/local-authority/30UE,Democratic Represent and  Mgnt,1007,Streetscene & Leisure Contracts,Grounds Maintenance Contractor,20043,Grounds Maintenance Costs,5013,"Mowing of Blainscough Wood Nature Reserve to the areas discussed, bailing and removal of the bales off site",28/03/2013,87676,500.00,Revenue,T & L Kirkham,17058
Chorley Borough Council,http://statistics.data.gov.uk/id/local-authority/30UE,Democratic Represent and  Mgnt,1007,Streetscene & Leisure Contracts,Grounds Maintenance Contractor,20043,Grounds Maintenance Costs,5013,Meadow Mowing at Lower Burgh Meadows Yarrow Valley Country Park.  Area of mowing to be indicated,28/03/2013,87676,600.00,Revenue,T & L Kirkham,17058
Chorley Borough Council,http://statistics.data.gov.uk/id/local-authority/30UE,Democratic Represent and  Mgnt,1007,Streetscene & Leisure Contracts,Printing,40043,"Printing, Stationery & General",5026,"Mowing and baling of the Valley Bottoms, Yarrow Valley Country Park, bales to be left",28/03/2013,87676,750.00,Revenue,T & L Kirkham,17058
Chorley Borough Council,http://statistics.data.gov.uk/id/local-authority/30UE,Cemetery Cremation & Mortuary,1041,Streetscene & Leisure Contracts,General Repairs,20004,Repairs Maintenance & Alts,5005,10 Ground Mats for the Chorley Cemetery,01/03/2013,87157,655.00,Revenue,Teleshore (UK) Ltd,20447
Chorley Borough Council,http://statistics.data.gov.uk/id/local-authority/30UE,Unapportionable Central OHeads,1009,Governance,Fixtures & Fittings - Purchase,20027,Fixtures and Fittings,5010,Curtains for the Council Chamber,26/03/2013,87555,"8,759.00",Revenue,Thistle Homes (nw) Ltd,56631
Chorley Borough Council,http://statistics.data.gov.uk/id/local-authority/30UE,Central Support Services,1009,Chief Executives Office,Postages,40082,Communication and Computing,5028,Mail collection for all departments,06/03/2013,87236,926.88,Revenue,TNT Post North Ltd,21187
Chorley Borough Council,http://statistics.data.gov.uk/id/local-authority/30UE,Unapportionable Central OHeads,1009,Chief Executives Office,Postages,40082,Communication and Computing,5028,Mail collection for all departments,15/03/2013,87408,965.89,Revenue,TNT Post North Ltd,21187
Chorley Borough Council,http://statistics.data.gov.uk/id/local-authority/30UE,Community Development,1097,Health Environment & Neighbourhoods,Community Develop Initiatives,40185,Miscellaneous Expenses,5034,Tree work for 1 day at Charnock Richard Primary School Woodland Garden project Cllr Leadbetter EOI project,26/03/2013,87586,720.00,Revenue,Treescape North West Ltd,17688
Chorley Borough Council,http://statistics.data.gov.uk/id/local-authority/30UE,Service Management & Support,1009,Streetscene & Leisure Contracts,External Contractor,40198,Miscellaneous Expenses,5034,Tree work to Oak at rear of Earlsway Euxton,26/03/2013,87587,420.00,Revenue,Treescape North West Ltd,17688
Chorley Borough Council,http://statistics.data.gov.uk/id/local-authority/30UE,Unapportionable Central OHeads,1009,HR & Org. Development,Miscellaneous Expenses,40200,Miscellaneous Expenses,5034,Level 1-5,26/03/2013,87571,"1,446.22",Revenue,UK Healthcare (BDHSC),17241
Chorley Borough Council,http://statistics.data.gov.uk/id/local-authority/30UE,Control Accounts,Control,HR & Org. Development,General Balances,100,Balance Sheet,Balance,Top ups,26/03/2013,87571,305.27,Revenue,UK Healthcare (BDHSC),17241
Chorley Borough Council,http://statistics.data.gov.uk/id/local-authority/30UE,Central Support Services,1009,Governance,Sewerage/Environment Svcs,20024,Water Services,5009,Town Hall Water,06/03/2013,87174,618.86,Revenue,United Utilities Water Plc,17926
Chorley Borough Council,http://statistics.data.gov.uk/id/local-authority/30UE,Unapportionable Central OHeads,1009,Governance,Water - Unmetered Supply,20023,Water Services,5009,Wastewater,06/03/2013,87174,413.11,Revenue,United Utilities Water Plc,17926
Chorley Borough Council,http://statistics.data.gov.uk/id/local-authority/30UE,Democratic Represent and  Mgnt,1007,Streetscene & Leisure Contracts,Water - Metered Supplies,20022,Water Services,5009,Tatton Rec Groun,13/03/2013,87356,707.29,Revenue,United Utilities Water Plc,17926
Chorley Borough Council,http://statistics.data.gov.uk/id/local-authority/30UE,Democratic Represent and  Mgnt,1007,Health Environment & Neighbourhoods,Water - Metered Supplies,20022,Water Services,5009,Astley Hall,21/03/2013,87359,337.46,Revenue,United Utilities Water Plc,17926
Chorley Borough Council,http://statistics.data.gov.uk/id/local-authority/30UE,Homelessness,1075,Housing,Water - Unmetered Supply,20023,Water Services,5009,Cotswold House,15/03/2013,87411,"1,479.55",Revenue,United Utilities Water Plc,17926
Chorley Borough Council,http://statistics.data.gov.uk/id/local-authority/30UE,Democratic Represent and  Mgnt,1007,Streetscene & Leisure Contracts,Water - Metered Supplies,20022,Water Services,5009,Water at Astley Coach House,26/03/2013,87664,482.22,Revenue,United Utilities Water Plc,17926
Chorley Borough Council,http://statistics.data.gov.uk/id/local-authority/30UE,Central Support Services,1009,Streetscene & Leisure Contracts,Water - Metered Supplies,20022,Water Services,5009,"Water and Destructor, Stump Lane",26/03/2013,87682,759.57,Revenue,United Utilities Water Plc,17926
Chorley Borough Council,http://statistics.data.gov.uk/id/local-authority/30UE,Unapportionable Central OHeads,1009,Governance,Training Course Fees,17010,Indirect Employee Expenses,5002,Professional Skills Course ,01/03/2013,87128,"2,300.00",Revenue,University of Central Lancashire (UCLAN),22472
Chorley Borough Council,http://statistics.data.gov.uk/id/local-authority/30UE,Corporate Management,1008,Policy & Performance,Consultants` Fees,40077,Services,5027,Rough cut activity based costing,06/03/2013,87147,"1,350.00",Revenue,ValueAdding.com Ltd,20758
Chorley Borough Council,http://statistics.data.gov.uk/id/local-authority/30UE,Corporate Management,1008,Streetscene & Leisure Contracts,Unitary Payment(S),50009,Private Contractors,5042,Provision of waste collection and ancillary services for June 2012 to March 2013 inc.,01/03/2013,87095,"251,040.17",Revenue,Veolia ES (UK) Ltd,20748
Chorley Borough Council,http://statistics.data.gov.uk/id/local-authority/30UE,Central Support Services,1009,"Customer, ICT & Transactional",Telephones - Rentals,40083,Communication and Computing,5028,Recurring Charges,26/03/2013,87603,644.06,Revenue,Virgin Media Payments Ltd,17632
Chorley Borough Council,http://statistics.data.gov.uk/id/local-authority/30UE,Central Support Services,1009,"Customer, ICT & Transactional",Telephones - Calls,40084,Communication and Computing,5028,Calls Useage,26/03/2013,87603,367.63,Revenue,Virgin Media Payments Ltd,17632
Chorley Borough Council,http://statistics.data.gov.uk/id/local-authority/30UE,Democratic Represent and  Mgnt,1007,Streetscene & Leisure Contracts,Consultants` Fees,40077,Services,5027,Curatorial Consultant Fees - February 2013 (including vat),13/03/2013,87316,583.30,Revenue,Whittle and Draper Fine Art,52271
Chorley Borough Council,http://statistics.data.gov.uk/id/local-authority/30UE,Culture & Heritage,1036,Streetscene & Leisure Contracts,Consultants` Fees,40077,Services,5027,Curatorial Consultancy fees - December 2012.,26/03/2013,87621,466.64,Revenue,Whittle and Draper Fine Art,52271
Chorley Borough Council,http://statistics.data.gov.uk/id/local-authority/30UE,Unapportionable Central OHeads,1009,Shared Service Arrangement,Employee Related Insurance,18003,Indirect Employee Expenses,5002,Fee in respect of placement and servicing for group life,06/03/2013,87188,"1,500.00",Revenue,Willis Limited,21974
Chorley Borough Council,http://statistics.data.gov.uk/id/local-authority/30UE,Community Safety CCTV,1044,Streetscene & Leisure Contracts,Vehicle Maintenance,30045,Direct Transport Costs,5016,"Carryout repairs as listed Replace fuel pipes, starter motor fan belts and wiper blades",13/03/2013,87091,369.50,Revenue,Wrekamendid Services Ltd,21188
Chorley Borough Council,http://statistics.data.gov.uk/id/local-authority/30UE,Service Management & Support,1009,Streetscene & Leisure Contracts,Vehicle Maintenance,30045,Direct Transport Costs,5016,Recover vehicle supply and fit new drive shaft and carryout repairs to damaged door locks on MX06UKJ ,26/03/2013,87378,549.00,Revenue,Wrekamendid Services Ltd,21188
Chorley Borough Council,http://statistics.data.gov.uk/id/local-authority/30UE,Corporate Management,1008,Streetscene & Leisure Contracts,Other Contributions,40145,Grants and Subscriptions,5031,Yellow Cabs transport services for the Warm Homes Healthy People scheme 2012-13,08/03/2013,87208,"1,206.70",Revenue,Yellow Cabs (North West Ltd),52276
Chorley Borough Council,http://statistics.data.gov.uk/id/local-authority/30UE,Corporate Management,1008,Shared Service Arrangement,Employee Related Insurance,18003,Indirect Employee Expenses,5002,"Insurance Policy 2013 Third party, hirers Liability Policy",06/03/2013,86546,265.00,Revenue,Zurich Insurance Company,16236
Chorley Borough Council,http://statistics.data.gov.uk/id/local-authority/30UE,Corporate Management,1008,Shared Service Arrangement,Employee Related Insurance,18003,Indirect Employee Expenses,5002,Insurance Policy Engineering inspection,06/03/2013,86547,"5,479.46",Revenue,Zurich Insurance Company,16236
Chorley Borough Council,http://statistics.data.gov.uk/id/local-authority/30UE,Corporate Management,1008,Shared Service Arrangement,Employee Related Insurance,18003,Indirect Employee Expenses,5002,Insurance Policy 2013 Combined Policy Renewal,06/03/2013,86548,"189,086.39",Revenue,Zurich Insurance Company,16236
Chorley Borough Council,http://statistics.data.gov.uk/id/local-authority/30UE,Corporate Management,1008,Shared Service Arrangement,Employee Related Insurance,18003,Indirect Employee Expenses,5002,2013 Combined Policy Renewal,06/03/2013,87191,706.20,Revenue,Zurich Insurance Company,16236
Chorley Borough Council,http://statistics.data.gov.uk/id/local-authority/30UE,Corporate Management,1008,Shared Service Arrangement,Employee Related Insurance,18003,Indirect Employee Expenses,5002,Training,26/03/2013,87537,"1,000.00",Revenue,Zurich Insurance Company,16236
Chorley Borough Council,http://statistics.data.gov.uk/id/local-authority/30UE,Corporate Management,1008,Shared Service Arrangement,Employee Related Insurance,18003,Indirect Employee Expenses,5002,Training,26/03/2013,87538,"1,000.00",Revenue,Zurich Insurance Company,16236
